Cogmind - Beta 13 @@@ ROGUE MODE // 2024.06.01 @ 15:43:43 Player: CrossedViper Result: Destroyed by S-43 Plague with Heavy Machine Gun Performance ------------- Evolutions (9) 4500 Regions Visited (30) 6000 Robots Destroyed (728) 3640 Value Destroyed (40494) 40494 Prototype IDs (81) 1620 Alien Tech Used (8) 1600 Bonus (37134) 37134 TOTAL SCORE: 94988 Bonus ------- Triggered High Security 500 High Alert Combat Kills 18768 Follower Combat Kills 1997 Entered Garrisons 800 Network Hubs Disabled 200 Acquired ECA 300 Met Zhirov 300 Built Enhanced Grunts 300 A7 Reached Mainframe 300 Met R17 at Cetus 500 Met R17 at Research 2000 Acquired SGEMP 2000 Destroyed MAIN.C Guards 500 Met MAIN.C 5000 Destroyed MAIN.C Shell 5000 Friendly Fire -1331 Cogmind --------- Core Integrity 0/1600 Matter 244/300 Energy 98/100 System Corruption 12% Temperature Cool (0) Movement Core (50) Location -1/Command Parts ------- > --- POWER (3) -------- (None) > --- PROPULSION (6) --- (None) > --- UTILITY (12) ----- Experimental Core Analyzer Improved Hacking Suite > --- WEAPON (4) ------- (None) > --- INVENTORY (5) ---- Experimental Energy Well (600) Transdimensional Reconstructor Transdimensional Reconstructor Peak State ------------ > --- POWER ------------ Singularity Reactor > --- PROPULSION ------- Armored Heavy Treads Enhanced Armored Heavy Treads High-density Centrium Heavy Treads > --- UTILITY ---------- Coolant Network Advanced Coolant Injector Advanced Coolant Injector Huge Storage Unit Experimental Targeting Computer Experimental Core Analyzer Advanced Weapon Cycler Experimental EM Disruption Field Experimental Force Field Microwarp Drive > --- WEAPON ----------- Nova Cannon Enhanced Nova Cannon Multirail Multirail > --- INVENTORY -------- Reinforced Quantum Reactor Improved Quantum Reactor Improved Quantum Reactor Armored Heavy Treads Experimental Energy Well Experimental Energy Well Centrium Heavy Armor Plating Centrium Heavy Armor Plating Experimental Shock Absorption System Improved Energy Mantle Experimental System Shield Transdimensional Reconstructor Transdimensional Reconstructor Transdimensional Reconstructor High-powered Transdimensional Reconstructor Subatomic Replicator Spacefold Activator Sigix Sheargun Sigix Sheargun Compact HERF Cannon Improved Matter Neutralizer Advanced Micro-nuke Launcher [Rating: 258] Favorites ----------- Power Cold Fusion Reactor Engine Light Ion Engine Power Core Reinforced Fission Core Reactor Cold Fusion Reactor Propulsion Light Treads Treads Light Treads Leg Arachnoskeleton Wheel High-density Centrium Wheel Hover Unit Cooled Gravmag System Utility Huge Storage Unit Device Advanced Cooling System Storage Huge Storage Unit Processor Experimental Targeting Computer Hackware Makeshift Hacking Suite Protection Core Shielding Artifact Phase Armor Weapon Nova Cannon Energy Gun Cooled Plasma Rifle Energy Cannon Nova Cannon Ballistic Gun Assault Rifle Ballistic Cannon Hypervelocity Gauss Cannon Launcher Mini Grenade Launcher Impact Weapon Heavy Mace Slashing Weapon Makeshift Sword Build | -11 -10 -10 -10 -8 -8 -8 -8 -8 -7 -7 -6 -6 -6 -6 -6 -5 -4 -4 -4 -4 -4 -4 -3 -3 -3 -2 -2 -2 -1 -1 ------- Run | Yrd Mat Min Sub Mat Gar Mat Gar Sto Fac Gar Fac Ext Cet Arc Hub Fac Fac Gar Fac Upp Upp Zhi Pro Res Tes Res Qua Sec Acc Com Slots Evolved 18 | . . . . 4 . . . . 2 . 2 . . . . 2 2 . . . . . . 2 . 2 . . 2 . Power 2 | . . . . . . . . . . . . . . . . 1 . . . . . . . 1 . . . . . . Propulsion 4 | . . . . 1 . . . . 1 . . . . . . . 2 . . . . . . . . . . . . . Utility 10 | . . . . 3 . . . . 1 . 2 . . . . . . . . . . . . 1 . 2 . . 1 . Weapon 2 | . . . . . . . . . . . . . . . . 1 . . . . . . . . . . . . 1 . Parts Attached 542 | 7 3 4 17 23 20 8 7 22 1 16 20 20 16 . 37 25 2 45 4 3 6 5 1 5 51 30 24 37 23 60 Power 41 | 1 . 1 . 2 3 2 . 3 . . 1 . . . 2 5 . 3 . . . 2 . 1 3 3 2 2 . 5 Engine 5 | 1 . 1 . . 2 . . 1 . . . . . . . . . . . . . . . . . . . . . . Core 8 | . . . . 2 1 2 . 2 . . . . . . . 1 . . . . . . . . . . . . . . Reactor 28 | . . . . . . . . . . . 1 . . . 2 4 . 3 . . . 2 . 1 3 3 2 2 . 5 Propulsion 77 | 2 . . 3 4 6 . . 2 1 2 1 4 3 . 2 1 2 9 1 . . . . . 7 7 2 8 4 6 Treads 55 | 2 . . 3 4 5 . . 2 1 1 . 2 3 . 2 1 2 8 1 . . . . . 4 2 . 2 4 6 Leg 3 | . . . . . 1 . . . . . . . . . . . . 1 . . . . . . . . . 1 . . Wheel 18 | . . . . . . . . . . 1 1 2 . . . . . . . . . . . . 3 5 2 4 . . Hover 1 | . . . . . . . . . . . . . . . . . . . . . . . . . . . . 1 . . Flight . | . . . . . . . . . . . . . . . . . . . . . . . . . . . . . . . Utility 247 | 2 1 3 4 6 3 2 2 6 . 5 7 7 7 . 16 11 . 16 3 2 5 1 . 3 32 15 16 23 12 37 Device 145 | 1 . 1 2 2 2 . . . . 1 3 1 2 . 9 7 . 13 1 2 2 1 . 1 25 11 13 18 8 19 Storage 10 | 1 1 . . 1 . . . . . . 1 . . . 1 1 . . . . . . . 1 . 1 . . . 2 Processor 12 | . . . . . . . . . . . . 2 . . 2 . . 2 . . 1 . . . 2 1 . 1 . 1 Hackware 6 | . . . . 1 . . . . . . . . . . . . . . 1 . . . . 1 . . . . 1 2 Protection 62 | . . 2 2 2 1 2 2 6 . 4 3 4 5 . 4 3 . 1 1 . 2 . . . 5 2 2 3 2 4 Artifact 12 | . . . . . . . . . . . . . . . . . . . . . . . . . . . 1 1 1 9 Weapon 177 | 2 2 . 10 11 8 4 5 11 . 9 11 9 6 . 17 8 . 17 . 1 1 2 1 1 9 5 4 4 7 12 Energy Gun 29 | . . . . 3 1 2 2 5 . . . . . . 1 . . 5 . . . 1 . . 3 1 . . . 5 Energy Cannon 72 | . . . 5 3 1 . 2 2 . 6 7 6 1 . 4 1 . 8 . 1 1 1 1 1 4 4 4 4 4 1 Ballistic Gun 39 | 2 2 . 4 3 5 . . 2 . . . . 4 . 6 2 . 3 . . . . . . . . . . 3 3 Ballistic Cannon 3 | . . . . . . . . . . . . . . . . 3 . . . . . . . . . . . . . . Launcher 27 | . . . . 1 1 2 1 2 . 3 3 . . . 6 2 . 1 . . . . . . 2 . . . . 3 Special Weapon . | . . . . . . . . . . . . . . . . . . . . . . . . . . . . . . . Impact Weapon 5 | . . . . . . . . . . . 1 3 1 . . . . . . . . . . . . . . . . . Slashing Weapon 2 | . . . 1 1 . . . . . . . . . . . . . . . . . . . . . . . . . . Piercing Weapon . | . . . . . . . . . . . . . . . . . . . . . . . . . . . . . . . Special Melee Weapon . | . . . . . . . . . . . . . . . . . . . . . . . . . . . . . . . Unidentified Prototypes 67 | . . 1 . 2 . . . 5 . . 2 . 3 . 9 3 . 2 . 1 . 2 . . 15 1 5 10 2 4 Corrupted Parts 9 | . . . . . . . . . . . . . 2 . 3 . . . . . . . . . 4 . . . . . System Corruption 62 | . . . . . . . . . . . . . 12 . 22 . . . . . . . . . 28 . . . . . Parts Lost 85 | . 1 1 3 1 6 2 3 2 . 2 1 . . . 5 3 . 12 . 1 2 . . . 4 2 2 3 . 29 Power 8 | . . 1 1 . 1 . . . . . . . . . 1 . . 1 . . . . . . . . . . . 3 Propulsion 14 | . . . 1 . 3 1 . . . . . . . . . . . 4 . . . . . . . . . . . 5 Utility 40 | . 1 . . 1 . 1 2 1 . 2 1 . . . 2 1 . 5 . 1 . . . . 4 1 1 3 . 13 Weapon 23 | . . . 1 . 2 . 1 1 . . . . . . 2 2 . 2 . . 2 . . . . 1 1 . . 8 Highest Loss Streak 19 | . 1 1 2 1 3 1 2 2 . 1 1 . . . 1 1 . 4 . 1 1 . . . 1 2 2 3 . 19 To Critical Strikes 1 | . . . . . . . . . . . . . . . . . . . . . . . . . . . . . . 1 Average Slot Usage (%) 81 | . 93 97 97 90 77 67 70 75 76 87 75 81 88 88 81 81 83 84 78 77 70 63 76 79 81 80 81 74 70 70 Engine 2 | . 14 13 11 . 4 1 . . . . . . . . . . . . . . . . . . . . . . . . Core 1 | . . . . 8 2 5 7 8 7 7 1 . . . . . . . . . . . . . . . . . . . Reactor 5 | . . . . . . . . . . . 4 6 5 5 5 9 10 10 10 10 10 10 10 14 14 13 12 4 4 6 Treads 14 | . 28 28 27 24 20 13 7 6 23 18 6 5 15 11 12 11 20 19 15 15 15 15 15 14 10 8 8 8 11 11 Wheel 2 | . . . . . . . . . . 3 6 9 . . . . . . . . . . . . 7 7 8 7 . . Device 14 | . 8 . 5 8 8 7 7 8 7 6 12 19 8 5 11 19 15 19 21 21 15 17 21 21 16 19 20 22 23 20 Storage 6 | . 14 14 14 9 8 7 7 8 7 7 6 6 5 5 5 5 5 5 5 5 5 5 5 3 4 4 4 4 4 5 Processor 5 | . . . . . . . . . . . . . 11 11 11 11 10 11 9 5 9 10 10 9 9 8 8 6 8 7 Protection 8 | . . 11 8 15 5 9 16 19 15 26 22 19 20 23 15 4 5 1 . 5 4 2 . . 3 4 3 4 3 3 Energy Gun 2 | . . . . 4 1 6 6 6 . . . . . . . . . 3 . . . 1 5 4 6 4 3 . . 5 Energy Cannon 9 | . . . 18 6 3 . 2 7 15 14 12 9 4 . 1 5 5 5 15 14 7 . 8 9 6 7 9 13 11 6 Ballistic Gun 4 | . 28 28 9 6 10 7 1 2 . . . . 11 23 13 5 5 4 . . . . . . . . . . 2 . Naked Turns . | . . . . . . . . . . . . . . . . . . . . . . . . . . . . . . . Heaviest Build 262 | 11 28 28 40 58 56 66 68 67 67 79 98 112 94 83 83 138 137 145 152 155 150 133 143 170 178 205 262 262 221 237 Greatest Support 230 | 40 40 40 40 60 70 50 50 90 110 110 100 56 160 160 160 160 214 214 205 205 205 205 205 205 205 40 40 40 230 230 Greatest Overweight (x) 57 | . . . . 1 1 1 1 1 . . 3 3 2 . . . . 2 . . . . . . 7 5 6 10 5 57 Average Overweight (x) 1 | . . . . . . 1 1 . . . 2 2 . . . . . . . . . . . . 3 4 5 5 . 2 Largest Inventory Capacity 25 | 8 15 15 15 15 15 15 15 15 15 15 15 15 15 15 15 25 25 25 25 25 25 25 25 25 25 25 25 25 25 25 Average Capacity 19 | 7 11 15 15 15 15 15 15 15 15 15 15 15 15 15 15 18 25 25 25 25 25 25 25 24 25 25 25 25 25 24 Most Carried 25 | 4 13 15 15 15 15 15 15 15 14 15 15 15 15 15 15 25 24 25 25 25 23 25 25 25 25 25 25 25 25 25 Average Carried 19 | 2 7 14 14 14 13 13 14 14 12 13 14 14 14 15 14 15 23 24 24 24 21 23 25 23 24 24 24 24 24 20 Final Capacity 25 | 8 15 15 15 15 15 15 15 15 15 15 15 15 15 15 15 25 25 25 25 25 25 25 25 25 25 25 25 25 25 5 Final Carried 25 | 4 10 15 15 15 11 15 14 15 12 15 15 14 15 15 13 25 23 25 25 23 23 25 25 25 24 25 25 24 24 3 Class Distribution -------------------- 34% | Scavenger-Gunner 31% | Mutant 14% | Scavenger-Tank 12% | Scavenger-Mutant 4% | Gunner 3% | Commander-Mutant Dominant Class ---------------- Mutant | -10/Materials Mutant | -10/Mines Mutant | -10/Subcaves Scavenger-Mutant | -8/Materials Mutant | -8/Garrison Mutant | -8/Materials Mutant | -8/Garrison Mutant | -8/Storage Mutant | -7/Factory Scavenger-Mutant | -7/Garrison Mutant | -6/Factory Commander-Mutant | -6/Extension Scavenger-Tank | -6/Cetus Scavenger-Tank | -6/Archives Scavenger-Mutant | -6/Hub_04(d) Scavenger-Gunner | -5/Factory Scavenger-Gunner | -4/Factory Scavenger-Gunner | -4/Garrison Scavenger-Gunner | -4/Factory Scavenger-Gunner | -4/Upper Caves Scavenger-Mutant | -4/Upper Caves Scavenger-Mutant | -4/Zhirov Scavenger-Gunner | -3/Proximity Caves Scavenger-Gunner | -3/Research Scavenger-Gunner | -3/Testing Gunner | -2/Research Scavenger-Gunner | -2/Quarantine Scavenger-Tank | -2/Section 7 Scavenger-Tank | -1/Access Scavenger-Tank | -1/Command Resources | -11 -10 -10 -10 -8 -8 -8 -8 -8 -7 -7 -6 -6 -6 -6 -6 -5 -4 -4 -4 -4 -4 -4 -3 -3 -3 -2 -2 -2 -1 -1 ----------- Run | Yrd Mat Min Sub Mat Gar Mat Gar Sto Fac Gar Fac Ext Cet Arc Hub Fac Fac Gar Fac Upp Upp Zhi Pro Res Tes Res Qua Sec Acc Com Matter Collected 11206 | 278 119 136 261 528 483 387 262 353 . 244 212 203 267 215 1248 1256 . 1063 48 52 175 . 119 50 569 304 290 425 537 1122 Remotely 1247 | . . . . . . . . . . . . . . . 226 721 . 290 . . . . . . . . . . 10 . Salvage Created 40999 | 146 307 267 638 1144 545 1167 269 1498 . 886 708 1109 397 226 2473 2363 . 2468 519 546 430 . 81 581 3075 2582 3124 3654 4154 5642 Parts 1745 | 9 16 22 42 61 29 70 24 70 . 40 16 30 19 15 114 112 . 127 23 25 12 . . 17 105 125 125 159 186 152 Haulers Intercepted 31 | . 2 . . 5 . 1 . 5 . . 2 1 . . 1 4 . . . . . . . . 2 . 2 3 3 . Recyclers Shooed 20 | . 3 . . . . 1 . 1 . . 2 2 . . . 6 . . . . . . . . . 1 . . 4 . Parts Field Recycled . | . . . . . . . . . . . . . . . . . . . . . . . . . . . . . . . Retrieved Matter . | . . . . . . . . . . . . . . . . . . . . . . . . . . . . . . . Parts Self-Destructed 54 | . . . 13 . . . . . . . . . . . . . . . . 25 16 . . . . . . . . . Prevented . | . . . . . . . . . . . . . . . . . . . . . . . . . . . . . . . Kills | -11 -10 -10 -10 -8 -8 -8 -8 -8 -7 -7 -6 -6 -6 -6 -6 -5 -4 -4 -4 -4 -4 -4 -3 -3 -3 -2 -2 -2 -1 -1 ------- Run | Yrd Mat Min Sub Mat Gar Mat Gar Sto Fac Gar Fac Ext Cet Arc Hub Fac Fac Gar Fac Upp Upp Zhi Pro Res Tes Res Qua Sec Acc Com Combat Hostiles Destroyed 606 | . 4 4 18 18 15 28 14 25 . 22 7 6 3 1 50 39 . 40 12 11 7 . . 7 39 34 29 43 44 86 Melee 4 | . . . . 1 . . . . . . . 1 . . 1 1 . . . . . . . . . . . . . . Guns 185 | . 4 4 5 6 10 23 7 15 . . . . 2 1 28 17 . 18 . . . . . . 12 9 6 . 7 11 Cannons 244 | . . . 13 7 2 . . 7 . 9 6 2 1 . 4 16 . 18 6 11 4 . . 4 15 19 19 35 29 17 AOE 116 | . . . . 3 3 5 7 2 . 12 . . . . 16 5 . 3 6 . . . . . . . . . . 54 Classes Destroyed 29 | 2 4 2 3 3 1 3 . . . 1 1 . . . 2 . . 2 . . . . . . 2 1 2 . . . Worker 20 | . . . . 2 . 2 . 1 . . 2 . . . 3 1 . . . . . . . . . 1 3 1 3 1 Builder 15 | . . 2 . 3 . 3 . . . . . 1 . . 1 3 . . . . . . . . . . . 1 1 . Tunneler 3 | 2 . 1 . . . . . . . . . . . . . . . . . . . . . . . . . . . . Hauler 31 | . 2 . . 5 . 1 . 5 . . 2 1 . . 1 4 . . . . . . . . 2 . 2 3 3 . Recycler 15 | 1 1 . . . . . . 1 . . 1 4 . . 2 1 . . . . . . . . . . . . 4 . Mechanic 9 | . . . . 1 . . . . . . . . . . 1 1 . . . . . . . . . . . . . 6 Operator 14 | . . . . 1 . . . . . . . . . 4 . 1 . . . . . . . 1 1 1 2 1 1 1 Watcher 25 | . 2 . . 2 . . . . . 1 . . 1 . 2 2 . . . . . . . 1 3 3 3 3 1 1 Swarmer 105 | . 2 . 7 3 4 5 10 2 . 4 3 . . . 9 8 . 12 6 5 2 . . . 5 9 . 4 5 . Cutter 6 | . . . . . . . . . . . . . . . . . . 6 . . . . . . . . . . . . Saboteur 8 | . . . . . . . . . . . . . . . 1 2 . . . . . . . . . . . 1 . 4 Grunt 209 | . 2 2 . 12 5 13 2 10 . 14 1 3 . . 18 17 . 7 5 3 3 . . 5 12 8 10 9 9 39 Brawler 24 | . . . . . . 2 . . . . . . . . 3 2 . . . . 1 . . . . . 1 1 2 12 Duelist 18 | . . . . . . 2 . 3 . 1 . . . . 3 2 . . . . . . . . . . 1 1 . 5 Protector 11 | . . . . . . . . . . . . . . . 3 . . . . . . . . . . . 1 . 1 6 Researcher 2 | . . . . . . . . . . . . . . . . . . . . . . . . . . . 1 1 . . Sentry 54 | . . 2 1 3 2 4 2 10 . 2 . 1 . 1 2 1 . 3 1 1 1 . . 2 2 2 3 4 3 1 Specialist 4 | . . . . . . 2 . . . . . . . . 2 . . . . . . . . . . . . . . . Hunter 37 | . . . . . 4 . . . . . 2 . . . 2 1 . . . 2 . . . . 4 3 5 7 2 5 Programmer 76 | . . . . . . . . . . . 1 1 . . 3 6 . 5 . . . . . . 11 9 7 8 18 7 Heavy 2 | . . . . . . . . . . . . . . . . . . . . . . . . . . 1 . . 1 . Behemoth 12 | . . . . . . . . . . 1 . . . . . . . 5 . . . . . . . 2 . . 3 1 Cetus Guard 3 | . . . . . . . . . . . . . 3 . . . . . . . . . . . . . . . . . M Guard 2 | . . . . . . . . . . . . . . . . . . . . . . . . . . . . . . 2 Lightning 4 | . . . . . . . . . . . . . . . 4 . . . . . . . . . . . . . . . Combat Programmer 1 | . . . . . . . . . . . . . . . . . . . . . . . . . . . . . . 1 Investigator 1 | . . . . . . . . . . . . . . . . . . . . . . . . . . . . . . 1 Striker 8 | . . . . . . . . . . . . . . . . . . . . . . . . . 2 . . 4 . 2 Executioner 4 | . . . . . . . . . . . . . . . . . . 2 . . . . . . . . . 2 . . Alpha 7 3 | . . . . . . . . . . . . . . . . . . . . . . . . . 1 . . 2 . . Fortress 1 | . . . . . . . . . . . . . . . . . . . . . . . . . . . 1 . . . Protovariant G 1 | . . . . . . . . . . . . . . . . . . . . . . . . . 1 . . . . . Protovariant L 1 | . . . . . . . . . . . . . . . . . . . . . . . . . 1 . . . . . Artisan 1 | . . . 1 . . . . . . . . . . . . . . . . . . . . . . . . . . . Cobbler 2 | . . . 2 . . . . . . . . . . . . . . . . . . . . . . . . . . . Subdweller 10 | . . . 10 . . . . . . . . . . . . . . . . . . . . . . . . . . . Packrat 1 | . . . . . . . . . . . . . . . . . . . . . . . 1 . . . . . . . Thug 1 | . . . . . . . . . . . . . 1 . . . . . . . . . . . . . . . . . Savage 2 | . . . . . . . . . . . . . 2 . . . . . . . . . . . . . . . . . Butcher 1 | . . . . . . . . . . . . 1 . . . . . . . . . . . . . . . . . . Guerrilla 3 | . . . . . . . . . . . . 3 . . . . . . . . . . . . . . . . . . Best Kill Streak 40 | 3 3 2 4 6 6 12 10 5 . 10 3 5 3 3 20 14 . 8 6 3 5 . . 5 7 8 10 9 8 40 Combat Bots Only 35 | . 2 2 4 4 6 7 10 4 . 10 3 2 2 1 16 14 . 8 6 3 5 . . 5 7 8 10 8 5 35 Max Kills in Single Turn 6 | 1 1 1 2 2 2 2 2 2 . 4 1 1 2 1 5 2 . 3 6 1 1 . 1 1 2 1 2 2 2 5 Gunslinging 1 | . . . 1 . . . . . . . . . . . 1 . . . . . . . . . . . . . . . Exploded 6 | . . . . 2 2 2 2 1 . 4 . . . . 5 1 . 3 6 . . . . . . . . . . 4 Melee 1 | . . . . 1 . . . . . . . 1 . . 1 1 . . . . . . . . . . . . . . Uniques/NPCs Destroyed 1 | . . . . . . . . . . . . . . . . . . . . . . . . . . . . . . 1 MAIN.C Shell (-1/Command) Combat | -11 -10 -10 -10 -8 -8 -8 -8 -8 -7 -7 -6 -6 -6 -6 -6 -5 -4 -4 -4 -4 -4 -4 -3 -3 -3 -2 -2 -2 -1 -1 -------- Run | Yrd Mat Min Sub Mat Gar Mat Gar Sto Fac Gar Fac Ext Cet Arc Hub Fac Fac Gar Fac Upp Upp Zhi Pro Res Tes Res Qua Sec Acc Com Hostile Shots Fired 3998 | . 28 24 74 72 128 149 86 126 . 202 67 126 26 3 360 223 . 222 23 87 31 . . 20 225 191 213 331 361 600 Missed 1043 | . 9 5 23 23 24 45 22 32 . 72 16 34 7 2 110 62 . 54 11 23 8 . . 6 57 54 46 68 99 131 Damage Taken 45608 | . 162 270 636 704 1513 1580 680 1649 . 1153 680 936 349 27 4098 2186 78 4315 279 1079 435 . . 187 2814 1809 1867 3153 2596 10373 Core 3905 | . 38 39 81 79 101 170 55 97 . 63 18 67 . . 306 202 . 316 26 109 26 . . 11 170 88 80 232 128 1403 Absorbed by Shields 12042 | . . . . . . . . . . . . 464 110 . . . . 54 . . . . . 196 211 1269 1372 2853 2577 2936 Reduced by Siege Mode 1070 | . . . . . 13 6 . . . . . . . . 15 57 . 172 11 72 28 . . . 75 69 170 109 98 175 Redirected to Shielding 78 | . . 5 8 16 17 . . 12 . 20 . . . . . . . . . . . . . . . . . . . . Ignored by Resistances 8582 | . . . . . . . . . . 9 132 231 93 . 1036 772 . 243 . 108 . . . . 787 712 723 328 587 2821 Regen/Repaired (Parts) 1611 | . . . . . . . . 1175 . . . . . . . . . . . . . . . 436 . . . . . . Core Remaining (%) 63 | 100 . . 36 . . . . 8 . 91 . . . . 54 79 . . . . . . 58 . 86 . . 61 . . Volleys Fired 1935 | 9 27 17 49 67 52 83 48 83 . 72 44 56 14 13 104 85 . 163 31 54 30 . 3 32 190 99 84 119 127 180 Largest 4 | 2 2 2 2 2 2 2 2 2 . 2 2 2 3 4 3 3 . 3 1 1 1 . 1 1 3 3 3 3 4 4 Hottest 466 | 40 40 40 160 160 108 83 116 136 . 136 136 166 150 140 105 129 . 240 113 113 113 . 105 105 234 250 339 339 466 440 Shots Fired 3964 | 18 54 34 85 125 96 159 73 163 . 125 83 83 35 52 207 224 . 305 31 55 32 . 3 32 261 223 219 317 422 448 Gun 1672 | 18 54 34 37 73 71 152 50 100 . . . . 12 52 154 86 . 194 . . . . . . 150 88 63 . 49 235 Cannon 2199 | . . . 48 48 23 . 18 61 . 115 81 83 23 . 33 130 . 110 31 55 32 . 3 32 111 135 156 317 373 181 Launcher 93 | . . . . 4 2 7 5 2 . 10 2 . . . 20 8 . 1 . . . . . . . . . . . 32 Special . | . . . . . . . . . . . . . . . . . . . . . . . . . . . . . . . Kinetic 940 | 18 54 34 37 54 67 83 10 33 . . . . 12 52 154 140 . 122 . . . . . . . . . . 49 21 Thermal 2619 | . . . 48 71 29 76 58 128 . 115 81 80 23 . 33 76 . 182 31 45 31 . 3 9 189 223 219 315 373 181 Explosive 80 | . . . . . . . 5 2 . 10 2 . . . 20 8 . 1 . . . . . . . . . . . 32 Electromagnetic 111 | . . . . . . . . . . . . 3 . . . . . . . 10 1 . . 23 72 . . 2 . . Slashing 214 | . . . . . . . . . . . . . . . . . . . . . . . . . . . . . . 214 Robot Hit Streak 70 | 6 13 4 11 9 21 19 29 22 . 18 11 18 21 5 29 28 . 26 18 13 13 . 2 15 21 20 39 18 31 70 Robot Miss Streak 5 | 2 4 3 3 4 3 5 2 3 . 3 4 3 1 4 4 5 . 2 2 4 5 . 1 2 3 3 2 3 5 5 Penetration Max 1 | . . . . . 1 1 . . . . . . 1 1 1 1 . 1 . . . . . . . . . . 1 1 Secondary Targets 25 | . 1 1 2 . 4 4 1 2 . . . . . . 7 . . 1 . . . . . . 1 . . . . 1 Max Gunslinging Chain 1 | . 1 1 1 . 1 1 1 1 . . . . . . 1 . . 1 . . . . . . 1 . . . . 1 Capacitor 363 | . . . . . . . . . . . . . . . . . . 77 31 55 32 . 3 32 133 . . . . . Shots Hit Robots 2667 | 11 36 22 48 76 62 94 32 120 . 79 50 64 30 25 153 143 . 222 23 36 21 . 2 21 196 140 144 217 244 356 Core Hits 1481 | 6 17 12 24 42 25 56 19 51 . 41 21 22 15 14 126 103 . 85 15 18 7 . 1 11 78 57 65 78 122 350 Critical Kills 72 | . . . . 1 . 1 . 1 . 1 2 1 1 1 11 12 . 8 . . 3 . . . . 2 5 7 11 4 Critical Parts Destroyed 36 | . . . . . 1 . . . . . . 1 . 3 12 16 . 2 . . . . . . . . . . 1 . Critical Strikes 155 | . . . . 2 2 6 2 5 . 1 2 2 2 4 25 28 . 24 . 1 3 . . 2 6 5 6 7 12 8 Burn 36 | . . . . 1 1 5 2 4 . . . . . . . . . 13 . . . . . . 6 3 1 . . . Meltdown 39 | . . . . 1 . . . 1 . 1 2 1 . . 1 . . 1 . . 3 . . . . 2 5 7 10 4 Destroy 73 | . . . . . 1 1 . . . . . . 2 4 24 28 . 10 . . . . . . . . . . 2 1 Corrupt 3 | . . . . . . . . . . . . . . . . . . . . 1 . . . 2 . . . . . . Smash 1 | . . . . . . . . . . . . 1 . . . . . . . . . . . . . . . . . . Sever 3 | . . . . . . . . . . . . . . . . . . . . . . . . . . . . . . 3 Melee Attacks 40 | . . . 1 4 . . . . . . . 30 5 . . . . . . . . . . . . . . . . . Impact 35 | . . . . . . . . . . . . 30 5 . . . . . . . . . . . . . . . . . Slashing 5 | . . . 1 4 . . . . . . . . . . . . . . . . . . . . . . . . . . Piercing . | . . . . . . . . . . . . . . . . . . . . . . . . . . . . . . . Sneak Attacks 4 | . . . . 2 . . . . . . . 2 . . . . . . . . . . . . . . . . . . Combat Hostiles 1 | . . . . . . . . . . . . 1 . . . . . . . . . . . . . . . . . . Follow-up Attacks . | . . . . . . . . . . . . . . . . . . . . . . . . . . . . . . . Damage Inflicted 113886 | 93 356 308 1105 2737 1626 2811 1086 2795 . 2665 1114 1966 822 872 7850 5585 . 6674 1448 1446 860 . 69 869 7707 6192 6380 9783 10369 28298 Guns 32247 | 93 343 293 271 785 1016 1887 591 1468 . . . . 331 872 3245 1798 . 3870 . . . . . . 3852 2141 1369 . 1116 6906 Cannons 55098 | . . . 834 998 350 . . 878 . 1594 1106 1467 491 . 730 2356 . 2527 909 1446 860 . 69 854 3855 4040 5011 9783 9173 5767 Explosions 25525 | . . . . 681 260 924 495 419 . 1071 . . . . 3875 1380 . 277 539 . . . . . . . . . . 15604 Melee 719 | . . . . 220 . . . . . . . 499 . . . . . . . . . . . . . . . . . . Ramming 297 | . 13 15 . 53 . . . 30 . . 8 . . . . 51 . . . . . . . 15 . 11 . . 80 21 Kinetic 16622 | 93 343 293 271 1215 1222 1735 133 403 . . . . 331 872 3245 2347 . 2119 . . . . . . . . . . 1116 884 Thermal 63317 | . . . 834 1249 404 1076 458 1943 . 1594 1106 1429 491 . 730 1807 . 4278 1448 1136 860 . 69 36 5123 6181 6380 9745 9173 5767 Explosive 22898 | . . . . . . . 495 419 . 1071 . . . . 3875 1157 . 277 . . . . . . . . . . . 15604 Electromagnetic 4011 | . . . . . . . . . . . . 38 . . . 223 . . . 310 . . . 818 2584 . . 38 . . Impact 499 | . . . . . . . . . . . . 499 . . . . . . . . . . . . . . . . . . Slashing 6242 | . . . . 220 . . . . . . . . . . . . . . . . . . . . . . . . . 6022 Piercing . | . . . . . . . . . . . . . . . . . . . . . . . . . . . . . . . Highest Corruption 43 | . . . . 3 3 . . . . . 1 2 14 14 43 3 . 2 2 2 2 2 2 . 36 2 1 6 3 12 Average Corruption 6 | . . . . 3 2 . . . . . 1 1 11 14 33 1 . 1 2 2 2 2 2 . 24 1 1 3 2 5 Corruption Purged 5 | . . . . . 3 . . . . . . . . . . . . . . . . . . . . 2 . . . . Corruption Blocked . | . . . . . . . . . . . . . . . . . . . . . . . . . . . . . . . Effects 360 | . . . . 17 6 . . . . . 1 15 16 5 65 15 . 12 2 12 12 2 9 . 66 5 3 34 28 35 Message Errors 73 | . . . . 2 . . . . . . . 4 4 1 10 5 . 4 1 3 . 2 2 . 12 1 2 10 5 5 Matter Fused 83 | . . . . 4 3 . . . . . 1 2 5 2 8 4 . 2 1 5 6 . 2 . 17 1 . 9 4 7 Heat Flow Errors 44 | . . . . 4 1 . . . . . . . 1 . 6 2 . 2 . . 3 . 2 . 11 1 . 3 3 5 Energy Discharges 30 | . . . . 1 . . . . . . . 3 3 1 2 . . 1 . . . . . . 7 . 1 4 5 2 Parts Rejected 12 | . . . . . . . . . . . . 1 . . 5 . . 1 . . . . . . 1 . . . 1 3 Parts Fused 2 | . . . . . . . . . . . . . . . 1 . . . . . . . . . . . . . . 1 Data Loss (minor) 40 | . . . . 2 . . . . . . . 3 2 1 9 1 . 1 . 2 1 . 2 . 6 1 . 4 2 3 Data Loss (major) 10 | . . . . . . . . . . . . . . . 3 1 . . . 1 . . 1 . 2 . . . 1 1 Misfires 19 | . . . . 1 1 . . . . . . . 1 . 4 2 . 1 . 1 2 . . . 3 . . . 2 1 Alerts 3 | . . . . . . . . . . . . 2 . . . . . . . . . . . . . . . . 1 . Misdirections 1 | . . . . . . . . . . . . . . . . . . . . . . . . . 1 . . . . . Weapon Failures 43 | . . . . 3 1 . . . . . . . . . 17 . . . . . . . . . 6 1 . 4 4 7 Overload Shots 1 | . . . . . . . . . . . . . . . 1 . . . . . . . . . . . . . . . Overflow Damage 2205 | . . . 16 65 . 8 2 11 . 6 12 133 17 . 21 34 . 79 73 17 15 . 20 36 100 167 400 299 260 414 Projectiles 1478 | . . . 16 . . . . 11 . 6 12 9 17 . 7 15 . 23 . 17 15 . 20 31 100 167 400 299 206 107 Explosions 525 | . . . . 52 . 8 2 . . . . . . . 14 19 . 56 73 . . . . . . . . . . 301 Melee 202 | . . . . 13 . . . . . . . 124 . . . . . . . . . . . 5 . . . . 54 6 Knockbacks 10 | . . 1 . . . . . . . . . 1 . . . 6 . . . . . . . . . . . . 1 1 Impact 4 | . . 1 . . . . . . . . . 1 . . . . . . . . . . . . . . . . 1 1 Kinetic 5 | . . . . . . . . . . . . . . . . 5 . . . . . . . . . . . . . . Secondary 1 | . . . . . . . . . . . . . . . . 1 . . . . . . . . . . . . . . Self-Inflicted Damage 995 | . . . . . 33 110 . . . 59 4 . . . 452 113 . 55 60 . . . . . . 5 . . . 104 Shots 26 | . . . . . 2 2 . . . 4 . . . . 9 5 . 1 1 . . . . . . . . . . 2 Rammed 22 | . 4 2 . 5 . . . 1 . . 1 . . . . 4 . . . . . . . . . 2 . . 2 1 Targets Rammed 31 | . 4 2 . 6 . . . 7 . . 1 . . . . 5 . . . . . . . 1 . 2 . . 2 1 Kicked 6 | . . . . . . . . 6 . . . . . . . . . . . . . . . . . . . . . . Crushed 3 | . . . . 1 . . . . . . . . . . . 1 . . . . . . . 1 . . . . . . Highest Temperature 637 | . 12 16 95 270 130 18 60 66 . 108 72 199 201 . 235 492 . 637 45 270 317 . 65 44 266 351 230 386 194 373 Average Temperature 86 | . 9 3 31 77 35 12 18 17 . 41 26 111 114 . 81 83 . 164 28 88 155 . 40 15 95 89 78 101 78 139 Received Heat Transfer 8847 | . 18 126 75 351 450 612 198 567 . 366 45 306 45 . 825 601 . 1984 69 184 90 . . 39 329 366 224 190 68 719 Effects 13 | . . . . . . . . . . . . . . . . . . 10 . . . . . . . . . 1 . 2 Energy Bleed 2 | . . . . . . . . . . . . . . . . . . . . . . . . . . . . . . 2 Interference 3 | . . . . . . . . . . . . . . . . . . 3 . . . . . . . . . . . . Short Circuit 1 | . . . . . . . . . . . . . . . . . . . . . . . . . . . . 1 . . Damage (major) 7 | . . . . . . . . . . . . . . . . . . 7 . . . . . . . . . . . . Siege Activations 49 | . . . . . 2 1 . . . . . . 1 . 3 2 . 6 1 6 2 . . . 2 5 5 5 4 4 Total Turns 931 | . . . . . 80 38 . . . . . . 15 . 52 61 . 122 23 42 23 . . . 53 88 101 101 57 75 Longest Duration 59 | . . . . . 59 38 . . . . . . 15 . 23 54 . 34 23 14 12 . . . 49 52 33 36 31 40 Robots Corrupted 14 | . . . . . . . . . . . . . . . . . . . . . . . . 3 11 . . . . . Combat Hostiles 13 | . . . . . . . . . . . . . . . . . . . . . . . . 3 10 . . . . . Parts Fried 44 | . . . . . . . . . . . . 5 . . . . . . . . . . . 5 34 . . . . . Impact Corruptions 10 | . . . . . . . . . . . . 5 . . . . . . . . . . . 1 . . . . 3 1 Robots Melted 51 | . . . . 1 . . . 2 . 1 2 2 . . 1 . . 2 . . 3 . . . 2 6 5 10 10 4 Combat Hostiles 44 | . . . . 1 . . . 1 . 1 1 2 . . 1 . . 2 . . 3 . . . 2 6 4 8 8 4 Parts Melted 233 | . . . 1 7 . 2 3 13 . 6 10 4 . . 2 3 . 8 2 6 8 . . 1 21 35 18 36 31 16 Heat Transferred 72404 | . . . 1110 1887 629 2259 1073 3885 . 2701 1924 2422 903 . 1100 2650 . 7872 1201 1073 851 . 74 37 7111 6425 5792 8362 7250 3813 Parts Sabotaged 3 | . . . . . . . . . . . . . . . 2 . . . . . . . . . . . . . . 1 Parts Stolen . | . . . . . . . . . . . . . . . . . . . . . . . . . . . . . . . Parts Stripped . | . . . . . . . . . . . . . . . . . . . . . . . . . . . . . . . Power Chain Reactions . | . . . . . . . . . . . . . . . . . . . . . . . . . . . . . . . Alert | -11 -10 -10 -10 -8 -8 -8 -8 -8 -7 -7 -6 -6 -6 -6 -6 -5 -4 -4 -4 -4 -4 -4 -3 -3 -3 -2 -2 -2 -1 -1 ------- Run | Yrd Mat Min Sub Mat Gar Mat Gar Sto Fac Gar Fac Ext Cet Arc Hub Fac Fac Gar Fac Upp Upp Zhi Pro Res Tes Res Qua Sec Acc Com Peak Influence 3474 | 15 140 69 . 543 727 1146 1225 851 387 873 606 826 598 573 1937 2064 1010 2059 1509 . . . . 163 431 736 958 1130 1850 3474 Initial 1184 | . 9 19 . 122 308 354 747 596 387 270 457 253 462 239 200 948 1010 707 1080 . . . . . 91 162 414 491 677 1184 Average 747 | 4 43 41 . 323 480 721 1023 718 387 696 510 327 511 472 1044 1424 1010 1426 1224 . . . . 50 297 392 686 823 1176 1982 Maximum Alert Level 5 | . . . . 2 3 4 4 3 1 3 2 3 2 2 5 5 3 5 4 . . . . . 2 3 3 4 5 5 Low Security (%) 13 | 100 100 100 . 17 . . . . . . . 26 . . . . . . . . . . . 100 8 22 . . . . Level 1 16 | . . . . 54 32 16 . . 100 9 . 53 . 29 7 . . . . . . . . . 78 36 . . . . Level 2 22 | . . . . 28 58 18 . 44 . 46 100 14 99 70 9 . . . . . . . . . 12 39 54 26 2 . Level 3 27 | . . . . . 8 53 47 55 . 43 . 6 . . 56 36 100 26 55 . . . . . . 1 45 65 53 . Level 4 10 | . . . . . . 10 52 . . . . . . . 17 20 . 27 44 . . . . . . . . 8 26 37 Level 5 7 | . . . . . . . . . . . . . . . 8 42 . 46 . . . . . . . . . . 17 11 High Security 2 | . . . . . . . . . . . . . . . . . . . . . . . . . . . . . . 50 Max Security . | . . . . . . . . . . . . . . . . . . . . . . . . . . . . . . . Squads Dispatched 133 | . 2 . . 5 . 7 . 5 . . 5 2 . . 18 13 . . 5 . . . . 9 9 8 6 7 14 18 Investigation 18 | . 1 . . 2 . 2 . 1 . . . 1 . . 4 1 . . 2 . . . . 4 . . . . . . Extermination 26 | . . . . . . . . . . . 1 . . . 1 3 . . . . . . . . 5 4 3 3 5 1 Reinforcement 35 | . 1 . . 2 . 3 . . . . 4 1 . . 4 1 . . . . . . . 5 4 4 1 1 3 1 Assault 36 | . . . . . . 1 . 1 . . . . . . 4 4 . . 1 . . . . . . . 2 3 4 16 Garrison 18 | . . . . 1 . 1 . 3 . . . . . . 5 4 . . 2 . . . . . . . . . 2 . Intercept . | . . . . . . . . . . . . . . . . . . . . . . . . . . . . . . . Searches Triggered . | . . . . . . . . . . . . . . . . . . . . . . . . . . . . . . . Construction Impeded 5 | . . . . 1 . 1 . . . . . . . . . . . . . . . . . . . 1 . 1 1 . Haulers Reinforced 6 | . . . . . . . . . . . 2 . . . . 1 . . . . . . . 1 2 . . . . . Active Scanning Responses . | . . . . . . . . . . . . . . . . . . . . . . . . . . . . . . . Cargo Convoy Interrupts 1 | . . . . . . . . . . . . . . . . . . . . . . . . . . 1 . . . . Stealth | -11 -10 -10 -10 -8 -8 -8 -8 -8 -7 -7 -6 -6 -6 -6 -6 -5 -4 -4 -4 -4 -4 -4 -3 -3 -3 -2 -2 -2 -1 -1 --------- Run | Yrd Mat Min Sub Mat Gar Mat Gar Sto Fac Gar Fac Ext Cet Arc Hub Fac Fac Gar Fac Upp Upp Zhi Pro Res Tes Res Qua Sec Acc Com Distress Signals 29 | . 2 . . 3 . 2 . 3 . . 1 . 2 . 2 1 . . . . . . . 5 1 1 . 5 . 1 Communications Jammed . | . . . . . . . . . . . . . . . . . . . . . . . . . . . . . . . Distress Signals . | . . . . . . . . . . . . . . . . . . . . . . . . . . . . . . . Times Spotted 866 | . 11 4 24 28 18 38 17 33 . 24 9 31 10 11 71 58 . 35 13 17 8 . . 13 47 50 38 58 66 134 Peak Tracking Total 16 | . 4 2 4 4 6 6 7 5 . 12 2 4 5 2 8 6 . 4 7 8 5 . . 7 6 10 6 8 7 16 Tactical Retreats 27 | . . . 3 . 2 2 . . . 2 . . . . 3 4 . 1 1 1 . . . 1 1 1 . 1 2 2 Traps | -11 -10 -10 -10 -8 -8 -8 -8 -8 -7 -7 -6 -6 -6 -6 -6 -5 -4 -4 -4 -4 -4 -4 -3 -3 -3 -2 -2 -2 -1 -1 ------- Run | Yrd Mat Min Sub Mat Gar Mat Gar Sto Fac Gar Fac Ext Cet Arc Hub Fac Fac Gar Fac Upp Upp Zhi Pro Res Tes Res Qua Sec Acc Com Traps Triggered 26 | . . . 1 1 . 1 4 2 . . 1 4 . . . 1 1 3 1 . . . . . 2 1 . 2 1 . Indirectly . | . . . . . . . . . . . . . . . . . . . . . . . . . . . . . . . Trap Hack Attempts . | . . . . . . . . . . . . . . . . . . . . . . . . . . . . . . . Triggered . | . . . . . . . . . . . . . . . . . . . . . . . . . . . . . . . Disarmed . | . . . . . . . . . . . . . . . . . . . . . . . . . . . . . . . Reprogrammed . | . . . . . . . . . . . . . . . . . . . . . . . . . . . . . . . Reused . | . . . . . . . . . . . . . . . . . . . . . . . . . . . . . . . Traps Extracted . | . . . . . . . . . . . . . . . . . . . . . . . . . . . . . . . Installed . | . . . . . . . . . . . . . . . . . . . . . . . . . . . . . . . Triggered . | . . . . . . . . . . . . . . . . . . . . . . . . . . . . . . . Machines | -11 -10 -10 -10 -8 -8 -8 -8 -8 -7 -7 -6 -6 -6 -6 -6 -5 -4 -4 -4 -4 -4 -4 -3 -3 -3 -2 -2 -2 -1 -1 ---------- Run | Yrd Mat Min Sub Mat Gar Mat Gar Sto Fac Gar Fac Ext Cet Arc Hub Fac Fac Gar Fac Upp Upp Zhi Pro Res Tes Res Qua Sec Acc Com Machines Disabled 103 | . . . 1 5 3 6 4 3 . 1 . 6 . 6 9 19 . 7 4 1 1 . . . 6 2 6 6 5 2 Max in Single Turn 6 | . . . 1 1 1 2 1 1 . 1 . 1 . 2 1 6 . 2 4 1 1 . . . 1 1 1 1 1 1 Garrison Access 2 | . . . . . . . . . . . . . . . 1 . . . . . . . . . . . . 1 . . Garrison Relay 6 | . . . . . 1 . 2 . . . . . . . . . . 3 . . . . . . . . . . . . Phase Generator 1 | . . . . . . . . . . . . . . . . . . 1 . . . . . . . . . . . . Network Hub 1 | . . . . . . . . . . . . . . . 1 . . . . . . . . . . . . . . . Machines Repaired . | . . . . . . . . . . . . . . . . . . . . . . . . . . . . . . . Machines Dismantled . | . . . . . . . . . . . . . . . . . . . . . . . . . . . . . . . Machines Sabotaged 1 | . . . . . . . . . . . . . . . 1 . . . . . . . . . . . . . . . Overloaded Fab Kills . | . . . . . . . . . . . . . . . . . . . . . . . . . . . . . . . Hacking | -11 -10 -10 -10 -8 -8 -8 -8 -8 -7 -7 -6 -6 -6 -6 -6 -5 -4 -4 -4 -4 -4 -4 -3 -3 -3 -2 -2 -2 -1 -1 --------- Run | Yrd Mat Min Sub Mat Gar Mat Gar Sto Fac Gar Fac Ext Cet Arc Hub Fac Fac Gar Fac Upp Upp Zhi Pro Res Tes Res Qua Sec Acc Com Machines Accessed 83 | . 1 . 1 4 . 2 2 13 2 1 5 10 . . 5 1 1 2 2 . 1 4 . 3 4 2 5 5 5 2 Terminals 63 | . . . . 3 . 1 2 11 . 1 2 10 . . 5 1 . 2 2 . . . . 2 4 2 5 3 5 2 Fabricators 1 | . . . . . . . . . . . 1 . . . . . . . . . . . . . . . . . . . Repair Stations 4 | . . . . . . . . 2 . . 1 . . . . . . . . . . . . 1 . . . . . . Recycling Units 1 | . 1 . . . . . . . . . . . . . . . . . . . . . . . . . . . . . Scanalyzers 3 | . . . . . . . . . 1 . 1 . . . . . . . . . . . . . . . . 1 . . Garrison Access 5 | . . . . 1 . 1 . . 1 . . . . . . . 1 . . . . . . . . . . 1 . . Total Hacks 228 | . 1 . 1 13 . 4 4 34 4 1 23 24 . . 6 3 1 4 9 . 1 17 . 10 13 7 14 8 10 16 Successful 100 | . 1 . 1 5 . 1 2 17 3 1 15 8 . . 3 1 1 . 1 . 1 17 . 5 5 1 2 3 4 2 Failed 128 | . . . . 8 . 3 2 17 1 . 8 16 . . 3 2 . 4 8 . . . . 5 8 6 12 5 6 14 Catastrophic 34 | . . . . 2 . . . 2 . . 3 5 . . 1 2 . . 3 . . . . 1 2 2 5 1 2 3 Database Lockouts . | . . . . . . . . . . . . . . . . . . . . . . . . . . . . . . . Manual 83 | . 1 . . 11 . 3 . 19 . . 9 6 1 . 6 1 . . 4 . . . . 4 1 3 . . . 14 Terminals 173 | . . . . 12 . 3 4 28 . 1 7 24 . . 6 3 . 4 9 . . . . 7 13 7 14 5 10 16 Fabricators 3 | . . . . . . . . . . . 3 . . . . . . . . . . . . . . . . . . . Repair Stations 10 | . . . . . . . . 6 . . 1 . . . . . . . . . . . . 3 . . . . . . Recycling Units 1 | . 1 . . . . . . . . . . . . . . . . . . . . . . . . . . . . . Scanalyzers 16 | . . . . . . . . . 3 . 12 . . . . . . . . . . . . . . . . 1 . . Garrison Access 6 | . . . . 1 . 1 . . 1 . . . . . . . 1 . . . . . . . . . . 2 . . Terminal Hacks 65 | . . . 1 4 . . 2 10 . 1 2 8 . . . . . . 1 . 1 17 . 3 5 1 2 2 4 1 Record 5 | . . . . . . . . . . . . . . . . . . . . . . 5 . . . . . . . . Part Schematic 4 | . . . . . . . . . . . . . . . . . . . . . . 4 . . . . . . . . Robot Analysis 8 | . . . . 2 . . . 1 . . 1 . . . . . . . . . . 4 . . . . . . . . Prototype ID Bank 4 | . . . . . . . . . . . . . . . . . . . . . . 4 . . . . . . . . Open Door 14 | . . . . . . . 1 5 . . . 3 . . . . . . . . 1 . . . . . . 1 3 . Branch Access Points 5 | . . . . . . . . . . . 1 . . . . . . . 1 . . . . 1 . 1 . . 1 . Emergency Access Points 2 | . . . . . . . 1 . . 1 . . . . . . . . . . . . . . . . . . . . Terminal Index 5 | . . . . . . . . 1 . . . 1 . . . . . . . . . . . . 1 . 1 . . 1 Garrison Index 1 | . . . . 1 . . . . . . . . . . . . . . . . . . . . . . . . . . Alert Level 4 | . . . . . . . . . . . . 2 . . . . . . . . . . . 1 1 . . . . . Unreport Threat 8 | . . . . . . . . 2 . . . 2 . . . . . . . . . . . 1 2 . . 1 . . Hauler Manifests 2 | . . . . 1 . . . . . . . . . . . . . . . . . . . . . . 1 . . . Zone Layout 2 | . . . . . . . . 1 . . . . . . . . . . . . . . . . 1 . . . . . Derelict Proto ID Bank 1 | . . . 1 . . . . . . . . . . . . . . . . . . . . . . . . . . . Fabricator Hacks . | . . . . . . . . . . . . . . . . . . . . . . . . . . . . . . . Repair Station Hacks 7 | . . . . . . . . 5 . . . . . . . . . . . . . . . 2 . . . . . . Scan Component 4 | . . . . . . . . 3 . . . . . . . . . . . . . . . 1 . . . . . . Repair 3 | . . . . . . . . 2 . . . . . . . . . . . . . . . 1 . . . . . . Recycling Unit Hacks . | . . . . . . . . . . . . . . . . . . . . . . . . . . . . . . . Scanalyzer 13 | . . . . . . . . . 2 . 11 . . . . . . . . . . . . . . . . . . . Insert Component 6 | . . . . . . . . . 2 . 4 . . . . . . . . . . . . . . . . . . . Analyze 7 | . . . . . . . . . . . 7 . . . . . . . . . . . . . . . . . . . Garrison Access Hacks 5 | . . . . 1 . 1 . . 1 . . . . . . . 1 . . . . . . . . . . 1 . . Unlock Access 4 | . . . . 1 . 1 . . 1 . . . . . . . 1 . . . . . . . . . . . . . Seal Access 1 | . . . . . . . . . . . . . . . . . . . . . . . . . . . . 1 . . Unauthorized Hacks 10 | . 1 . . . . . . 2 . . 2 . . . 3 1 . . . . . . . . . . . . . 1 Terminals 8 | . . . . . . . . 2 . . 1 . . . 3 1 . . . . . . . . . . . . . 1 Assimilate 1 | . . . . . . . . . . . . . . . . 1 . . . . . . . . . . . . . . Botnet 4 | . . . . . . . . 2 . . 1 . . . . . . . . . . . . . . . . . . 1 Sabotage 3 | . . . . . . . . . . . . . . . 3 . . . . . . . . . . . . . . . Fabricators 1 | . . . . . . . . . . . 1 . . . . . . . . . . . . . . . . . . . Haulers 1 | . . . . . . . . . . . 1 . . . . . . . . . . . . . . . . . . . Repair Stations . | . . . . . . . . . . . . . . . . . . . . . . . . . . . . . . . Recycling Units 1 | . 1 . . . . . . . . . . . . . . . . . . . . . . . . . . . . . Tunnel 1 | . 1 . . . . . . . . . . . . . . . . . . . . . . . . . . . . . Scanalyzers . | . . . . . . . . . . . . . . . . . . . . . . . . . . . . . . . Garrison Access . | . . . . . . . . . . . . . . . . . . . . . . . . . . . . . . . Data Cores Recovered 4 | . . . . . . . . . . . . . . . . 1 . . . . . . . . 1 1 . . 1 . Used 1 | . . . . . . . . . . . . . . . . . . . . . . . . . . . . . 1 . Hacking Detections 55 | . . . . 3 . 1 2 7 1 1 4 8 1 . 2 1 . 2 2 . . . . 2 2 2 5 3 4 2 Full Trace Events 6 | . . . . 1 . . . 1 . . . 1 . . 1 1 . . 1 . . . . . . . . . . . Feedback Events 1 | . . . . . . . . . . . . . . . . 1 . . . . . . . . . . . . . . Corruption 1 | . . . . . . . . . . . . . . . . 1 . . . . . . . . . . . . . . Feedback Blocked . | . . . . . . . . . . . . . . . . . . . . . . . . . . . . . . . Robot Schematics Acquired . | . . . . . . . . . . . . . . . . . . . . . . . . . . . . . . . Robots Built . | . . . . . . . . . . . . . . . . . . . . . . . . . . . . . . . Authchips . | . . . . . . . . . . . . . . . . . . . . . . . . . . . . . . . Time . | . . . . . . . . . . . . . . . . . . . . . . . . . . . . . . . Total Robot Build Rating . | . . . . . . . . . . . . . . . . . . . . . . . . . . . . . . . Part Schematics Acquired 9 | . . . . . . . . . . . 4 . . . . . . . . . . 4 . . . . . 1 . . Parts Built . | . . . . . . . . . . . . . . . . . . . . . . . . . . . . . . . Authchips . | . . . . . . . . . . . . . . . . . . . . . . . . . . . . . . . Time . | . . . . . . . . . . . . . . . . . . . . . . . . . . . . . . . Total Part Build Rating . | . . . . . . . . . . . . . . . . . . . . . . . . . . . . . . . Parts Repaired 3 | . . . . . . . . 2 . . . . . . . . . . . . . . . 1 . . . . . . Time 125 | . . . . . . . . 112 . . . . . . . . . . . . . . . 13 . . . . . . Parts Recycled . | . . . . . . . . . . . . . . . . . . . . . . . . . . . . . . . Recycled Matter . | . . . . . . . . . . . . . . . . . . . . . . . . . . . . . . . Retrieved Matter . | . . . . . . . . . . . . . . . . . . . . . . . . . . . . . . . Retrieved Components . | . . . . . . . . . . . . . . . . . . . . . . . . . . . . . . . Parts Scanalyzed 4 | . . . . . . . . . . . 4 . . . . . . . . . . . . . . . . . . . Part Schematics Acquired 4 | . . . . . . . . . . . 4 . . . . . . . . . . . . . . . . . . . Parts Damaged . | . . . . . . . . . . . . . . . . . . . . . . . . . . . . . . . Bothacking | -11 -10 -10 -10 -8 -8 -8 -8 -8 -7 -7 -6 -6 -6 -6 -6 -5 -4 -4 -4 -4 -4 -4 -3 -3 -3 -2 -2 -2 -1 -1 ------------ Run | Yrd Mat Min Sub Mat Gar Mat Gar Sto Fac Gar Fac Ext Cet Arc Hub Fac Fac Gar Fac Upp Upp Zhi Pro Res Tes Res Qua Sec Acc Com Used RIF Installer . | . . . . . . . . . . . . . . . . . . . . . . . . . . . . . . . Robots Hacked . | . . . . . . . . . . . . . . . . . . . . . . . . . . . . . . . Non-combat . | . . . . . . . . . . . . . . . . . . . . . . . . . . . . . . . Combat . | . . . . . . . . . . . . . . . . . . . . . . . . . . . . . . . Robot Hacks Applied . | . . . . . . . . . . . . . . . . . . . . . . . . . . . . . . . Relay Couplers Released 23 | . . . . . 3 . 8 . . . . . . . 1 . . 11 . . . . . . . . . . . . Machine Destruction 23 | . . . . . 3 . 8 . . . . . . . 1 . . 11 . . . . . . . . . . . . Fabnet Peak Effective % . | . . . . . . . . . . . . . . . . . . . . . . . . . . . . . . . Robots Rewired 13 | . . . . . . . . . . . . 12 . . . . . . . . 1 . . . . . . . . . Allies Hacked . | . . . . . . . . . . . . . . . . . . . . . . . . . . . . . . . Hacks Repelled . | . . . . . . . . . . . . . . . . . . . . . . . . . . . . . . . Allies | -11 -10 -10 -10 -8 -8 -8 -8 -8 -7 -7 -6 -6 -6 -6 -6 -5 -4 -4 -4 -4 -4 -4 -3 -3 -3 -2 -2 -2 -1 -1 -------- Run | Yrd Mat Min Sub Mat Gar Mat Gar Sto Fac Gar Fac Ext Cet Arc Hub Fac Fac Gar Fac Upp Upp Zhi Pro Res Tes Res Qua Sec Acc Com Total Allies 32 | . . . . . . . 2 . . 2 . 21 5 . . . . 1 . . 1 . . . . . . . . . Largest Group 13 | . . . . . . . 2 . . 2 . 13 13 6 5 . . 1 . . 1 1 1 1 . . . . . . Highest-Rated Group 649 | . . . . . . . 51 . . 142 . 478 649 632 480 . . 46 . . 49 49 49 49 . . . . . . Highest-Rated Ally 159 | . . . . . . . 31 . . 80 . 159 159 152 96 . . 46 . . 49 49 49 49 . . . . . . Total Orders 1 | . . . . . . . . . . . . . . . . . . . . . . . . 1 . . . . . . STAY 1 | . . . . . . . . . . . . . . . . . . . . . . . . 1 . . . . . . Ally Attacks 381 | . . . . . . . 11 . . 10 . 191 57 17 80 . . 6 . . 5 . . 4 . . . . . . Total Damage 10853 | . . . . . . . 285 . . 459 . 3932 1466 699 3513 . . 134 . . 209 . . 156 . . . . . . Kills 49 | . . . . . . . 1 . . 1 . 26 7 3 9 . . 1 . . 1 . . . . . . . . . Allies Corrupted 4 | . . . . . . . 1 . . . . 1 . . 2 . . . . . . . . . . . . . . . Allies Melted 1 | . . . . . . . . . . 1 . . . . . . . . . . . . . . . . . . . . Intel | -11 -10 -10 -10 -8 -8 -8 -8 -8 -7 -7 -6 -6 -6 -6 -6 -5 -4 -4 -4 -4 -4 -4 -3 -3 -3 -2 -2 -2 -1 -1 ------- Run | Yrd Mat Min Sub Mat Gar Mat Gar Sto Fac Gar Fac Ext Cet Arc Hub Fac Fac Gar Fac Upp Upp Zhi Pro Res Tes Res Qua Sec Acc Com Robot Analysis Total 8 | . . . . 2 . . . 1 . . 1 . . . . . . . . . . 4 . . . . . . . . Derelict Logs Recovered 5 | . . 1 1 . . . . . . . . . . . . . . . . 1 2 . . . . . . . . . Drone Launches . | . . . . . . . . . . . . . . . . . . . . . . . . . . . . . . . Drone Recoveries . | . . . . . . . . . . . . . . . . . . . . . . . . . . . . . . . Exploration | -11 -10 -10 -10 -8 -8 -8 -8 -8 -7 -7 -6 -6 -6 -6 -6 -5 -4 -4 -4 -4 -4 -4 -3 -3 -3 -2 -2 -2 -1 -1 ------------- Run | Yrd Mat Min Sub Mat Gar Mat Gar Sto Fac Gar Fac Ext Cet Arc Hub Fac Fac Gar Fac Upp Upp Zhi Pro Res Tes Res Qua Sec Acc Com Turns Passed 30967 | 119 565 929 4070 887 686 602 734 1140 56 1037 636 1450 394 117 894 1262 108 1826 402 691 822 275 675 545 2015 1793 1672 1914 1686 965 Spaces Moved 14490 | 64 239 534 2133 368 276 173 307 415 35 490 314 738 185 44 304 554 64 782 212 355 471 160 412 281 913 782 720 773 789 603 Core 61 | 20 . . . . . . . . . . . . . . . . . . . . . . . . . . . . . 41 Treads 9086 | 44 239 534 2133 368 151 . . 132 35 490 9 2 155 44 304 554 64 782 212 355 471 160 412 281 206 . . . 703 246 Legs 888 | . . . . . 125 173 307 283 . . . . . . . . . . . . . . . . . . . . . . Wheels 4109 | . . . . . . . . . . . 305 736 30 . . . . . . . . . . . 707 782 720 773 56 . Hover . | . . . . . . . . . . . . . . . . . . . . . . . . . . . . . . . Flight . | . . . . . . . . . . . . . . . . . . . . . . . . . . . . . . . Fastest Speed 50 | 50 160 160 160 160 90 180 180 160 160 160 130 115 130 160 160 160 165 165 163 163 163 163 163 163 150 170 170 170 163 50 Average Speed 165 | 125 160 160 160 164 143 180 180 173 160 160 142 135 155 160 160 160 165 169 165 163 163 163 163 163 167 180 191 190 165 153 Slowest Speed 400 | 160 160 160 160 240 240 180 180 180 160 160 160 400 160 160 160 160 165 330 166 163 163 163 163 163 230 190 210 290 240 245 Overloaded Moves . | . . . . . . . . . . . . . . . . . . . . . . . . . . . . . . . Propulsion Burnouts . | . . . . . . . . . . . . . . . . . . . . . . . . . . . . . . . Robots Hopped . | . . . . . . . . . . . . . . . . . . . . . . . . . . . . . . . Cave-ins Triggered . | . . . . . . . . . . . . . . . . . . . . . . . . . . . . . . . Teleports 3 | . . . . . . . . . . . . . . . . . . . . . . . . . . 1 . 1 1 . Spacefolds 5 | . . . . . . . . . . . . . . . . . . . . . . . . . . . . . . 5 Microwarps 24 | . . . . . . . . . . . . . . . . . . . . . . . . . . . . . 4 20 Exploration Rate (%) 47 | 5 43 84 87 52 30 20 56 74 2 63 14 86 66 74 36 21 3 85 9 54 62 61 53 8 97 25 93 51 22 26 Regions Visited 30 Branch Regions 15 Pre-discovered Areas 6 | . 1 . . . . . . . . . . . . . . . . . . 1 1 3 . . . . . . . . Known Exits Taken 10 | . . . . 1 . 1 . 1 1 . 1 . . . . . 1 . 1 . . . . 1 . 1 . . 1 . Unknown Exits Taken 16 | 1 1 1 1 . . . . . . . . 1 1 1 1 1 . . . 1 1 1 1 . 1 . 1 1 . . Scrap Searched 18 | . . . 14 . . . . . . . . . . . . . . . . . 1 . 3 . . . . . . . Spaces Dug 186 | . . . 2 . 10 10 14 . . 10 18 4 1 . 26 3 . 24 . 1 . . . 6 5 15 6 1 30 . Terrain Destroyed 1455 | . . . 5 40 19 141 20 18 . 42 20 6 2 15 195 94 . 105 40 13 9 . 1 7 22 50 41 39 111 400 Melee 5 | . . . . . . . . . . . . 4 1 . . . . . . . . . . . . . . . . . Projectile 450 | . . . 5 9 1 1 1 . . 2 4 2 1 15 49 24 . 5 6 13 9 . 1 7 22 50 41 39 108 35 AOE 995 | . . . . 31 18 140 19 18 . 40 16 . . . 146 70 . 99 34 . . . . . . . . . . 364 Terrain Rammed . | . . . . . . . . . . . . . . . . . . . . . . . . . . . . . . . Walls Destroyed . | . . . . . . . . . . . . . . . . . . . . . . . . . . . . . . . Machines Disabled . | . . . . . . . . . . . . . . . . . . . . . . . . . . . . . . . Actions | -11 -10 -10 -10 -8 -8 -8 -8 -8 -7 -7 -6 -6 -6 -6 -6 -5 -4 -4 -4 -4 -4 -4 -3 -3 -3 -2 -2 -2 -1 -1 --------- Run | Yrd Mat Min Sub Mat Gar Mat Gar Sto Fac Gar Fac Ext Cet Arc Hub Fac Fac Gar Fac Upp Upp Zhi Pro Res Tes Res Qua Sec Acc Com Total 19105 | 87 375 575 2713 522 473 306 413 671 36 615 419 1050 258 58 513 748 66 1095 266 467 524 175 415 368 1292 1010 909 1056 997 633 Wait 1546 | . 87 5 466 29 107 31 32 112 . 27 18 74 8 2 40 46 . 61 8 54 13 . . 24 56 53 41 72 50 30 Move 14144 | 63 238 533 2132 368 275 173 306 414 34 487 313 737 184 43 303 553 64 781 211 354 470 159 411 280 912 781 719 772 762 312 Hop . | . . . . . . . . . . . . . . . . . . . . . . . . . . . . . . . Pick Up 290 | 8 11 9 23 8 7 7 . 11 . 8 8 5 9 . 9 22 . 16 5 . 2 5 . 22 19 18 16 19 9 14 Fast Attach 231 | 3 . 3 . 7 9 1 2 14 . 4 8 8 12 . 15 8 . 22 2 . 2 4 1 1 33 11 10 22 17 12 Attach 146 | 4 2 1 4 4 7 3 1 5 1 3 4 3 . . 4 9 2 10 1 1 2 2 . 2 12 7 4 11 4 33 Detach 29 | . . . . 2 . . . 2 . . . 1 . . . 2 . 2 . . . . . . 4 3 . 1 2 10 Swap 172 | . 1 . 13 12 4 4 4 3 . 9 8 9 4 . 18 8 . 13 1 2 2 . . 2 6 13 11 6 3 16 Drop 382 | . 5 5 25 14 12 4 . 20 1 5 15 9 22 . 20 10 . 27 7 2 2 5 . 4 44 23 24 34 21 22 Fire 1935 | 9 27 17 49 67 52 83 48 83 . 72 44 56 14 13 104 85 . 163 31 54 30 . 3 32 190 99 84 119 127 180 Melee 40 | . . . 1 4 . . . . . . . 30 5 . . . . . . . . . . . . . . . . . Ram 3 | . . . . . . . . . . . 1 . . . . . . . . . . . . . . 2 . . . . Kick 6 | . . . . . . . . 6 . . . . . . . . . . . . . . . . . . . . . . Crush 22 | . 4 2 . 6 . . . 1 . . . . . . . 5 . . . . . . . 1 . . . . 2 1 Escape Stasis 61 | . . . . . . . 20 . . . . 22 . . . . . . . . . . . . 16 . . . . 3 Rewire 97 | . . . . . . . . . . . . 96 . . . . . . . . 1 . . . . . . . . . Trap . | . . . . . . . . . . . . . . . . . . . . . . . . . . . . . . . Miscellaneous 1 | . . . . 1 . . . . . . . . . . . . . . . . . . . . . . . . . . Route ------- -11/Scrapyard -10/Materials -10/Mines (discovered 2 exits: [*Mat] / *Sub) -10/Subcaves (discovered 3 exits: *Mat x2 / Rec) -8/Materials (discovered 2 exits: *Fac / Gar) -8/Garrison -8/Materials -8/Garrison (discovered 2 exits: *Sto x2) -8/Storage -7/Factory -7/Garrison (discovered 3 exits: *Fac x3) -6/Factory (discovered 4 exits: Low x2 / *Ext x2) -6/Extension (discovered 2 exits: *Fac / *Cet) -6/Cetus (discovered 2 exits: *Fac / [*Arc]) -6/Archives -6/Hub_04(d) -5/Factory (discovered 2 exits: *Fac / [*Upp]) -4/Factory -4/Garrison (discovered 3 exits: *Fac x3) -4/Factory (discovered 2 exits: *Upp x2) -4/Upper Caves -4/Upper Caves -4/Zhirov -3/Proximity Caves -3/Research (discovered 3 exits: Arm / *Tes x2) -3/Testing -2/Research (discovered 2 exits: *Qua x2) -2/Quarantine (discovered 2 exits: *Acc / *Sec) -2/Section 7 -1/Access (discovered 2 exits: [*Sur] / *Com) -1/Command History --------- Turn | Location | Event 7 | -11/Scrapyard | Discovered new exit (range 13) 120 | -11/Scrapyard | Entered Materials 309 | -10/Materials | Build established: Mutant 391 | -10/Materials | Discovered new exit (range 12) 685 | -10/Materials | Entered Mines 932 | -10/Mines | A weapon hastily lodged in a ceiling crevice suddenly fell to the ground 1063 | -10/Mines | Learned location of 1 exit from Materials 1092 | -10/Mines | Found a damaged Exp. Sensor Array with a note attached 1097 | -10/Mines | Found Prototype Device 1097 | -10/Mines | Identified Exp. Sensor Array 1349 | -10/Mines | Discovered new exit (range 10) 1608 | -10/Mines | Discovered new exit (range 5) 1614 | -10/Mines | Entered Subcaves 1630 | -10/Subcaves | Identified exit to Recycling 1802 | -10/Subcaves | Shifting Twisted Machinery released Battle Rifle 1893 | -10/Subcaves | Shifting Twisted Machinery released Sub. Beam Cannon 1906 | -10/Subcaves | Shifting Twisted Machinery released Sub. Power Source 1992 | -10/Subcaves | Ambushed by Subdwellers from Twisted Machinery 2460 | -10/Subcaves | Discovered new exit (range 15) 2471 | -10/Subcaves | Disturbed a concealed Subdweller 3154 | -10/Subcaves | Discovered new exit (range 5) 3444 | -10/Subcaves | A Subdweller sparked back to life 3475 | -10/Subcaves | Found Prototype Leg 4721 | -10/Subcaves | Visited 4L-MR0's lab 4727 | -10/Subcaves | Identified Arachnoskeleton 4940 | -10/Subcaves | Core integrity fell below 50% 5316 | -10/Subcaves | Found Gun Armor 5684 | -10/Subcaves | Entered Materials 5684 | -8/Materials | Evolved 4 slots: Propulsion x1, Utility x3 5685 | -8/Materials | Identified exit to Factory 6043 | -8/Materials | Build established: Scavenger-Mutant 6115 | -8/Materials | Met 7R-MNS 6502 | -8/Materials | Garrison activated, responded to threat 6571 | -8/Materials | Identified exit to Garrison 6571 | -8/Materials | Entered Garrison 6749 | -8/Garrison | Triggered checkpoint 6825 | -8/Garrison | Lost 3 parts (1p2n) 6922 | -8/Garrison | Attached Arachnoskeleton, gained temporary slots: Propulsion x3 7175 | -8/Garrison | Build established: Mutant 7186 | -8/Garrison | Discovered new exit (range 13) 7196 | -8/Garrison | Garrison Relay disabled 7241 | -8/Garrison | Triggered checkpoint 7257 | -8/Garrison | Entered Materials 7492 | -8/Materials | Destroyed 7 combat bots 7657 | -8/Materials | First assault squad dispatched 7747 | -8/Materials | Core integrity fell below 50% 7772 | -8/Materials | Garrison activated, responded to threat 7790 | -8/Materials | Destroyed 7 combat bots 7859 | -8/Materials | Identified exit to Garrison 7859 | -8/Materials | Entered Garrison 7883 | -8/Garrison | Triggered checkpoint 7936 | -8/Garrison | Garrison Relay disabled 8027 | -8/Garrison | Rescued a captive Derelict 8028 | -8/Garrison | Rescued a captive Derelict 8193 | -8/Garrison | Triggered checkpoint 8198 | -8/Garrison | Triggered checkpoint 8238 | -8/Garrison | Destroyed 10 combat bots 8299 | -8/Garrison | Discovered new exit (range 9) 8524 | -8/Garrison | Garrison Relay disabled 8568 | -8/Garrison | Discovered new exit (range 12) 8593 | -8/Garrison | Entered Storage 8993 | -8/Storage | First assault squad dispatched 9025 | -8/Storage | Core integrity fell below 20% 9105 | -8/Storage | Repaired Hvy. Treads 9185 | -8/Storage | Garrison activated, responded to threat 9557 | -8/Storage | Discovered exit to Factory (range 15) 9711 | -8/Storage | Repaired Lyr. Heavy Armor Plating 9733 | -8/Storage | Entered Factory 9733 | -7/Factory | Evolved 2 slots: Propulsion x1, Utility x1 9785 | -7/Factory | Identified exit to Garrison 9789 | -7/Factory | Entered Garrison 9808 | -7/Garrison | Found embedded Infiltrators 9940 | -7/Garrison | Destroyed 10 combat bots 10015 | -7/Garrison | Spotted B-75 Beast 10158 | -7/Garrison | Destroyed B-75 Beast 10180 | -7/Garrison | Build established: Scavenger-Mutant 10322 | -7/Garrison | Discovered new exit (range 12) 10372 | -7/Garrison | Triggered checkpoint 10546 | -7/Garrison | Discovered new exit (range 12) 10567 | -7/Garrison | Attempted to access garrison exit controls, blocked by remote lockdown 10680 | -7/Garrison | Discovered new exit (range 9) 10695 | -7/Garrison | Attempted to access garrison exit controls, blocked by remote lockdown 10826 | -7/Garrison | Entered Factory 10826 | -6/Factory | Evolved 2 slots: Utility x2 11133 | -6/Factory | Build established: Mutant 11377 | -6/Factory | Identified exit to Lower Caves 11377 | -6/Factory | Identified exit to Extension 11462 | -6/Factory | Entered Extension 11538 | -6/Extension | Rescued a captive Derelict 11539 | -6/Extension | Rescued a captive Derelict 11775 | -6/Extension | Rescued a captive Derelict 11797 | -6/Extension | Rescued a captive Derelict 11805 | -6/Extension | Rescued a captive Derelict 11881 | -6/Extension | Rescued a captive Derelict 12196 | -6/Extension | Disrupted transfer network 12249 | -6/Extension | Build established: Commander-Mutant 12315 | -6/Extension | Spotted B-75 Beast 12327 | -6/Extension | Allies destroyed B-75 Beast 12332 | -6/Extension | Spotted B-75 Beast 12353 | -6/Extension | Allies destroyed B-75 Beast 12434 | -6/Extension | Rescued a captive Derelict 12531 | -6/Extension | Rescued a captive Derelict 12543 | -6/Extension | Rescued A7 12876 | -6/Extension | Discovered new exit (range 10) 12878 | -6/Extension | Discovered new exit (range 6) 12912 | -6/Extension | Entered Cetus 12912 | -6/Cetus | Accompanied by 13 allies (A7) 12917 | -6/Cetus | Acquired a Cetus Manufacturing Module code from A7 12930 | -6/Cetus | Spotted Cetus Guard 12930 | -6/Cetus | Spotted Cetus Guard 12934 | -6/Cetus | Spotted Cetus Guard 12934 | -6/Cetus | Spotted Cetus Guard 12950 | -6/Cetus | Allies destroyed Cetus Guard 12955 | -6/Cetus | Destroyed Cetus Guard 12964 | -6/Cetus | Allies destroyed Cetus Guard 12965 | -6/Cetus | Allies destroyed Cetus Guard 12984 | -6/Cetus | System corruption reached 10% 12986 | -6/Cetus | Attached Gun Armor, gained temporary slots: Weapon x2 12989 | -6/Cetus | Lost 7 allies 13104 | -6/Cetus | Escorted A7 to Cetus Mainframe 13122 | -6/Cetus | Started Cetus Manufacturing Module 13141 | -6/Cetus | Discovered new exit (range 15) 13147 | -6/Cetus | Manufactured an Enhanced Grunt 13168 | -6/Cetus | Spotted Cetus Guard 13168 | -6/Cetus | Spotted Cetus Guard 13171 | -6/Cetus | Allies destroyed Cetus Guard 13172 | -6/Cetus | Manufactured an Enhanced Grunt 13172 | -6/Cetus | Spotted Cetus Guard 13176 | -6/Cetus | Spotted Cetus Guard 13178 | -6/Cetus | Allies destroyed Cetus Guard 13183 | -6/Cetus | Destroyed Cetus Guard 13186 | -6/Cetus | Destroyed Cetus Guard 13197 | -6/Cetus | Manufactured an Enhanced Grunt 13204 | -6/Cetus | Discovered new exit (range 16) 13218 | -6/Cetus | Met Revision 17 13222 | -6/Cetus | Manufactured an Enhanced Grunt 13247 | -6/Cetus | Manufactured an Enhanced Grunt 13306 | -6/Cetus | Entered Archives 13306 | -6/Archives | Accompanied by 6 allies (A7) 13311 | -6/Archives | Received a hacking code to weaken MAIN.C 13388 | -6/Archives | Discovered new exit (range 15) 13423 | -6/Archives | Entered Hub_04(d) 13423 | -6/Hub_04(d) | Accompanied by 5 allies 13447 | -6/Hub_04(d) | Build established: Scavenger-Tank 13463 | -6/Hub_04(d) | Spotted B-75 Beast 13482 | -6/Hub_04(d) | Allies destroyed B-75 Beast 13491 | -6/Hub_04(d) | Network Hub disabled 13502 | -6/Hub_04(d) | Spotted Lightning 13502 | -6/Hub_04(d) | Garrison activated, responded to threat 13502 | -6/Hub_04(d) | Spotted Lightning 13510 | -6/Hub_04(d) | Spotted Lightning 13518 | -6/Hub_04(d) | Allies destroyed Lightning 13523 | -6/Hub_04(d) | Destroyed Lightning 13532 | -6/Hub_04(d) | Spotted Lightning 13536 | -6/Hub_04(d) | Spotted Lightning 13537 | -6/Hub_04(d) | Spotted Lightning 13550 | -6/Hub_04(d) | Found Prototype Device 13550 | -6/Hub_04(d) | Identified Exp. EM Disruption Field 13558 | -6/Hub_04(d) | Lost 4 allies 13577 | -6/Hub_04(d) | Destroyed Lightning 13598 | -6/Hub_04(d) | Destroyed Lightning 13598 | -6/Hub_04(d) | Destroyed Lightning 13635 | -6/Hub_04(d) | Found Prototype Processor 13635 | -6/Hub_04(d) | Identified Exp. Targeting Computer 13666 | -6/Hub_04(d) | Found Prototype Device 13667 | -6/Hub_04(d) | Identified Exp. Phase Shifter 13717 | -6/Hub_04(d) | Found Prototype Device 13717 | -6/Hub_04(d) | Identified Exp. Thermal Shield 13727 | -6/Hub_04(d) | Found Prototype Energy Cannon 13739 | -6/Hub_04(d) | System corruption reached 30% 13773 | -6/Hub_04(d) | First assault squad dispatched 13911 | -6/Hub_04(d) | Destroyed 7 combat bots 13926 | -6/Hub_04(d) | Found Exp. EM Disruption Field 13947 | -6/Hub_04(d) | Found Exp. Targeting Computer 13956 | -6/Hub_04(d) | Found Exp. Thermal Shield 14082 | -6/Hub_04(d) | Disrupted transfer network 14130 | -6/Hub_04(d) | Build established: Scavenger-Mutant 14144 | -6/Hub_04(d) | Garrison activated, responded to threat 14197 | -6/Hub_04(d) | Discovered new exit (range 15) 14201 | -6/Hub_04(d) | Destroyed 16 combat bots 14317 | -6/Hub_04(d) | Entered Factory 14317 | -5/Factory | Evolved 2 slots: Power x1, Weapon x1 14617 | -5/Factory | First assault squad dispatched 14832 | -5/Factory | Destroyed 14 combat bots 14908 | -5/Factory | Garrison activated, responded to threat 14991 | -5/Factory | Build established: Scavenger-Gunner 15087 | -5/Factory | Destroyed 7 combat bots 15401 | -5/Factory | Garrison activated, responded to threat 15463 | -5/Factory | Spotted B-75 Beast 15554 | -5/Factory | Discovered new exit (range 3) 15559 | -5/Factory | Discovered new exit (range 6) 15579 | -5/Factory | Entered another Factory area 15579 | -4/Factory | Evolved 2 slots: Propulsion x2 15687 | -4/Factory | Identified exit to Garrison 15687 | -4/Factory | Entered Garrison 15826 | -4/Garrison | Rescued a captive Derelict 15873 | -4/Garrison | Triggered checkpoint 15873 | -4/Garrison | Garrison Relay disabled 16016 | -4/Garrison | Spotted B-86 Titan 16033 | -4/Garrison | Destroyed 8 combat bots 16104 | -4/Garrison | Lost 3 parts (1n2u) 16109 | -4/Garrison | Destroyed B-86 Titan 16171 | -4/Garrison | Triggered checkpoint 16202 | -4/Garrison | Phase Generator disabled 16217 | -4/Garrison | Discovered new exit (range 12) 16339 | -4/Garrison | Triggered checkpoint 16374 | -4/Garrison | Garrison Relay disabled 16430 | -4/Garrison | Spotted Executioner 16432 | -4/Garrison | Spotted Executioner 16455 | -4/Garrison | Destroyed Executioner 16474 | -4/Garrison | Destroyed Executioner 16484 | -4/Garrison | Found Prototype Processor 16484 | -4/Garrison | Identified Exp. Core Analyzer 16491 | -4/Garrison | Found Exp. Core Analyzer 16503 | -4/Garrison | Found Exp. Targeting Computer 16583 | -4/Garrison | Spotted B-90 Cyclops 16596 | -4/Garrison | Discovered new exit (range 9) 16691 | -4/Garrison | Garrison Relay disabled 16956 | -4/Garrison | Destroyed B-90 Cyclops 16984 | -4/Garrison | Lost 4 parts (2n1u1w) 16990 | -4/Garrison | Found Quantum Capacitor 17173 | -4/Garrison | Destroyed B-86 Titan 17234 | -4/Garrison | Destroyed B-86 Titan 17319 | -4/Garrison | Triggered checkpoint 17403 | -4/Garrison | Discovered new exit (range 12) 17412 | -4/Garrison | Spotted B-86 Titan 17430 | -4/Garrison | Destroyed B-86 Titan 17487 | -4/Garrison | Found Hvy. Reflective Plating 17513 | -4/Garrison | Entered Factory 17727 | -4/Factory | Identified exit to Upper Caves 17759 | -4/Factory | Garrison activated, responded to threat 17763 | -4/Factory | First assault squad dispatched 17915 | -4/Factory | Entered Upper Caves 17921 | -4/Upper Caves | Met a Warlord Commander 17923 | -4/Upper Caves | Warlord Commander delivered Encrypted Comm Array 18032 | -4/Upper Caves | Attracted the attention of an 0b10 checkpoint 18240 | -4/Upper Caves | Learned Research terminal intel 18523 | -4/Upper Caves | Discovered new exit (range 7) 18543 | -4/Upper Caves | Identified EMDS 18589 | -4/Upper Caves | Attracted the attention of an 0b10 base 18606 | -4/Upper Caves | Entered another Upper Caves area 18676 | -4/Upper Caves | Learned Research garrison access intel 18731 | -4/Upper Caves | Learned location of Armory (-3) 19013 | -4/Upper Caves | Attracted the attention of an 0b10 outpost 19251 | -4/Upper Caves | Discovered new exit (range 10) 19333 | -4/Upper Caves | Build established: Scavenger-Mutant 19428 | -4/Upper Caves | Entered Zhirov 19428 | -4/Zhirov | Accompanied by 1 ally 19429 | -4/Zhirov | Discovered new exit (range 3) 19458 | -4/Zhirov | Met Zhirov 19494 | -4/Zhirov | Learned location of Quarantine (-2) 19494 | -4/Zhirov | Learned location of Testing (-3) 19494 | -4/Zhirov | Learned location of Command (-1) 19515 | -4/Zhirov | Zhirov requested help retrieving the SGEMP Prototype 19540 | -4/Zhirov | Found Alien Artifact 19540 | -4/Zhirov | Identified Integrated Reactor 19540 | -4/Zhirov | Installed Integrated Reactor, increased core energy generation (+10) 19611 | -4/Zhirov | Found Alien Artifact 19703 | -4/Zhirov | Entered Proximity Caves 19703 | -3/Proximity Caves | Accompanied by 1 ally 20246 | -3/Proximity Caves | Build established: Scavenger-Gunner 20370 | -3/Proximity Caves | Discovered new exit (range 5) 20378 | -3/Proximity Caves | Entered Research 20378 | -3/Research | Accompanied by 1 ally 20378 | -3/Research | Evolved 2 slots: Power x1, Utility x1 20379 | -3/Research | Loaded intel: 23 terminal locations 20380 | -3/Research | Loaded intel: 4 garrison access locations 20418 | -3/Research | Repaired Huge Storage Unit 20578 | -3/Research | Revision forces began assault on 0b10 20600 | -3/Research | Met up with Revision 17++ 20738 | -3/Research | Identified exit to Armory 20738 | -3/Research | Identified exit to Testing 20805 | -3/Research | Lost 10 allies 20923 | -3/Research | Entered Testing 21271 | -3/Testing | Destroyed 7 combat bots 21539 | -3/Testing | Found Prototype Processor 21539 | -3/Testing | Identified Exp. Target Analyzer 21568 | -3/Testing | Spotted Striker 21574 | -3/Testing | Spotted Striker 21578 | -3/Testing | Destroyed Striker 21578 | -3/Testing | Spotted Alpha 7 21580 | -3/Testing | Destroyed Striker 21628 | -3/Testing | Destroyed Alpha 7 21644 | -3/Testing | Found Corrupted Prototype Device 21644 | -3/Testing | Identified Exp. ECM Suite 21673 | -3/Testing | Stole the SGEMP Prototype 21779 | -3/Testing | Found Prototype Processor 21779 | -3/Testing | Identified Exp. Terrain Scan Processor 21960 | -3/Testing | Spotted PG-YE2RAG0FMX 21966 | -3/Testing | Destroyed PG-YE2RAG0FMX 22004 | -3/Testing | System corruption reached 10% 22017 | -3/Testing | System corruption reached 30% 22038 | -3/Testing | Found Prototype Launcher 22038 | -3/Testing | Identified Adv. Micro-nuke Launcher 22495 | -3/Testing | Found Prototype Protection 22495 | -3/Testing | Identified Centrium Heavy Armor Plating 22636 | -3/Testing | Spotted PL-YWXIU46LFL 22794 | -3/Testing | Destroyed PL-YWXIU46LFL 22808 | -3/Testing | Found Prototype Device 22808 | -3/Testing | Identified Femtoactuators 22845 | -3/Testing | Discovered new exit (range 12) 22938 | -3/Testing | Entered Research 22938 | -2/Research | Evolved 2 slots: Utility x2 23114 | -2/Research | Destroyed 8 combat bots 23458 | -2/Research | Build established: Gunner 24153 | -2/Research | Spotted B-90 Cyclops 24161 | -2/Research | Destroyed B-90 Cyclops 24170 | -2/Research | Cargo convoy interrupted 24170 | -2/Research | Identified Transdimensional Reconstructor 24170 | -2/Research | Warped through subspace 24315 | -2/Research | Identified exit to Quarantine 24411 | -2/Research | Found Prototype Hackware 24526 | -2/Research | Build established: Scavenger-Gunner 24586 | -2/Research | Spotted B-90 Cyclops 24600 | -2/Research | Destroyed B-90 Cyclops 24731 | -2/Research | Entered Quarantine 24902 | -2/Quarantine | Found Alien Artifact 24962 | -2/Quarantine | Found Alien Artifact 24965 | -2/Quarantine | Found Transdimensional Reconstructor 24968 | -2/Quarantine | Found Transdimensional Reconstructor 24975 | -2/Quarantine | Found Transdimensional Reconstructor 24986 | -2/Quarantine | Found Alien Artifact 24986 | -2/Quarantine | Identified Dimensional Node Initializer 24986 | -2/Quarantine | Initialized slip node 24995 | -2/Quarantine | Found Dimensional Node Initializer 25264 | -2/Quarantine | First assault squad dispatched 25392 | -2/Quarantine | Destroyed 7 combat bots 25625 | -2/Quarantine | Discovered new exit (range 9) 25790 | -2/Quarantine | Found Centrium Heavy Armor Plating 25793 | -2/Quarantine | Found Centrium Heavy Armor Plating 25801 | -2/Quarantine | Found Centrium Heavy Armor Plating 26060 | -2/Quarantine | Destroyed 10 combat bots 26128 | -2/Quarantine | Found Alien Artifact 26128 | -2/Quarantine | Identified Phase Armor 26186 | -2/Quarantine | Spotted Fortress 26198 | -2/Quarantine | Destroyed Fortress 26229 | -2/Quarantine | Found Prototype Device 26229 | -2/Quarantine | Identified Exp. Force Field 26243 | -2/Quarantine | Found Prototype Reactor 26243 | -2/Quarantine | Identified Vortex Chain Reactor 26254 | -2/Quarantine | Found Centrium Heavy Armor Plating 26392 | -2/Quarantine | Discovered new exit (range 6) 26403 | -2/Quarantine | Entered Section 7 26413 | -2/Section 7 | Found Prototype Reactor 26413 | -2/Section 7 | Identified Singularity Reactor 26422 | -2/Section 7 | Found Singularity Reactor 26501 | -2/Section 7 | Found Alien Artifact 26501 | -2/Section 7 | Identified Microwarp Drive 26960 | -2/Section 7 | Discovered new exit (range 8) 26985 | -2/Section 7 | Found Alien Artifact 27136 | -2/Section 7 | Lost 3 parts (3u) 27148 | -2/Section 7 | Destroyed 8 combat bots 27157 | -2/Section 7 | Found Prototype Device 27157 | -2/Section 7 | Identified Exp. Shock Absorption System 27197 | -2/Section 7 | Initialized slip node 27395 | -2/Section 7 | Build established: Scavenger-Tank 27477 | -2/Section 7 | Spotted Alpha 7 27489 | -2/Section 7 | Spotted Alpha 7 27507 | -2/Section 7 | Destroyed Alpha 7 27511 | -2/Section 7 | Destroyed Alpha 7 27653 | -2/Section 7 | First assault squad dispatched 27654 | -2/Section 7 | Spotted B-99 Colossus 27743 | -2/Section 7 | Spotted Executioner 27762 | -2/Section 7 | Destroyed Executioner 27763 | -2/Section 7 | Spotted Executioner 27771 | -2/Section 7 | Destroyed Executioner 27785 | -2/Section 7 | Found Exp. Core Analyzer 27792 | -2/Section 7 | Destroyed 7 combat bots 27801 | -2/Section 7 | Found Prototype Device 27801 | -2/Section 7 | Identified Adv. Kinecellerator 27950 | -2/Section 7 | Found Transdimensional Reconstructor 28022 | -2/Section 7 | Spotted Striker 28034 | -2/Section 7 | Destroyed Striker 28037 | -2/Section 7 | Spotted Striker 28041 | -2/Section 7 | Destroyed Striker 28148 | -2/Section 7 | Spotted Striker 28148 | -2/Section 7 | Spotted Striker 28162 | -2/Section 7 | Destroyed Striker 28167 | -2/Section 7 | Destroyed Striker 28218 | -2/Section 7 | Found Alien Energy Gun 28221 | -2/Section 7 | Found Alien Energy Gun 28281 | -2/Section 7 | Warped through subspace to slip node 28317 | -2/Section 7 | Entered Access 28317 | -1/Access | Evolved 2 slots: Utility x1, Weapon x1 28411 | -1/Access | Spotted B-99 Colossus 28454 | -1/Access | Destroyed B-99 Colossus 28634 | -1/Access | Identified exit to Command 28902 | -1/Access | Spotted B-99 Colossus 28932 | -1/Access | Destroyed B-99 Colossus 28942 | -1/Access | Spotted B-99 Colossus 28967 | -1/Access | Destroyed B-99 Colossus 29007 | -1/Access | Found Prototype Ballistic Gun 29007 | -1/Access | Identified Multirail 29017 | -1/Access | Found Multirail 29042 | -1/Access | Discovered new exit (range 9) 29093 | -1/Access | First assault squad dispatched 29703 | -1/Access | Warped through subspace 29848 | -1/Access | Garrison activated, responded to threat 29932 | -1/Access | Garrison activated, responded to threat 30003 | -1/Access | Entered Command 30003 | -1/Command | Identified Spacefold Activator 30065 | -1/Command | Spotted B-99 Colossus 30067 | -1/Command | Identified Sigix Sheargun (x2) 30093 | -1/Command | Destroyed B-99 Colossus 30150 | -1/Command | Identified Exp. System Shield 30281 | -1/Command | First assault squad dispatched 30380 | -1/Command | High security lockdown imminent 30408 | -1/Command | Destroyed 11 combat bots 30460 | -1/Command | High security lockdown engaged 30470 | -1/Command | Spotted M Guard 30470 | -1/Command | Spotted M Guard 30470 | -1/Command | Spotted Combat Programmer 30470 | -1/Command | Spotted Combat Programmer 30492 | -1/Command | Destroyed Combat Programmer 30506 | -1/Command | Destroyed M Guard 30515 | -1/Command | Destroyed M Guard 30515 | -1/Command | All MAIN.C guards destroyed 30546 | -1/Command | Lost 4 parts (1p3u) 30602 | -1/Command | Spotted Investigator 30640 | -1/Command | Destroyed Investigator 30651 | -1/Command | Destroyed 35 combat bots 30724 | -1/Command | Identified Subatomic Replicator 30724 | -1/Command | Used Subatomic Replicator to replicate Sigix Sheargun 30747 | -1/Command | Spotted Striker 30758 | -1/Command | Destroyed Striker 30761 | -1/Command | Destroyed Striker 30799 | -1/Command | Destroyed 26 combat bots 30821 | -1/Command | 0b10 Conduit disabled 30822 | -1/Command | Met MAIN.C 30829 | -1/Command | System corruption reached 10% 30866 | -1/Command | Destroyed MAIN.C Shell 30868 | -1/Command | MAIN.C activated Command garrisons 30887 | -1/Command | Found Singularity Reactor 30927 | -1/Command | Core integrity fell below 50% 30928 | -1/Command | Spotted B-99 Colossus 30958 | -1/Command | Core integrity fell below 20% 30968 | -1/Command | Destroyed by S-43 Plague with Heavy Machine Gun Last Messages --------------- 30942_ Dropped Exp. Energy Well. 30943_ Dropped Exp. EM Disruption Field. 30944_ Dropped Adv. Cooling System. 30945_ Extracted 1 energy. 30947_ Slug penetrates Door. 30951_ Spacefolded through Wall. 30952_ System corrupted: Component data lost. 30954_ Spacefolded through Wall. 30957_ Slug penetrates Wall. 30957_ Adv. Coolant Injector destroyed. 30957_ Spacefold Activator blasted off. 30957_ Knocked back. 30958_ Slug penetrates Wall. 30960_ Penetrated by Slug. 30960_ Enh. Optical Array destroyed. 30960_ Microwarped (distance 49). 30961_ Slug penetrates Wall. 30961_ Microwarp Drive destroyed. 30961_ Adv. Weapon Cycler destroyed. 30966_ Slug penetrates Wall. Map ----- +----------------------------------------------------+ | ??????????????????????"" | | ??????????????????????"" | | ????????????????????? | | ?????????????????????? "#### | | ?????????????##??????? ! ##??# " | | ????????????? ???????? "#??# | | ????????????? +??????? "#??##### | | ????????????? #???????####### " "#??????? | | ????????????? #?????????????# # T#??????? | | ????????????? #?????????????##?# "#??????? | | ????????????? #????????????????# "#??????? | | ????????????? #????????????????# "#??????? | | ?????????????#/#????????????????# ##??????? | | ?????????????# #????????????????# #???????? | | ?????????????# #????????????????# #???????? | | ?????????????# #????????????????# #???????? | | ?????????????# ################## #???????? | | ?????????????# ######### | | ?????????????# !! # | | ?????????????# ! T# | | ?????????????# k #################"""## | | ####### #####% # #???????? | | k + ! #???????? | | # #???????? | | #######+############## # !!= #???????? | | ?????????????????????# @ k# !! #???????? | | ?????????????????????# w # != #???????? | | ?????????????????????+ # #???????? | | ?????????????????????# s # ! #???????? | | ?????????????????????# # #???????? | | ?????????????????????# # #???????? | | ?????????????????????# s s# #??????? | | ?????????????????????# ss # ##??????? | | ?????????????????????# s ##############???????? | | ?????????????????????# #????????????????????? | | ????????????????????? #????????????????????? | | ????????????????????? #????????????????????? | | ???????????????????? ????????????????????? | | ???????????????????? ????????????????????? | | ?????????????????????#+######????????????????????? | | ?????????????????????????????????????????????????? | | ?????????????????????????????????????????????????? | | ?????????????????????????????????????????????????? | | ?????????????????????????????????????????????????? | | ?????????????????????????????????????????????????? | | ?????????????????????????????????????????????????? | | ?????????????????????????????????????????????????? | | ?????????????????????????????????????????????????? | | ?????????????????????????????????????????????????? | | ?????????????????????????????????????????????????? | +----------------------------------------------------+ Best States ------------- Heat Dissipation 173 Coolant Potential 200 Energy Generation 106 Energy Capacity 1450 Matter Stores 300 Matter Capacity 300 Sight Range 22 Terrain Scan Density 1010 Cloak Strength 3 Power Amplification 30 Armor Coverage 2400 Resistance: KI 30 Resistance: TH 30 Resistance: EX 75 Resistance: EM 75 Core Shielding 30 Weapon Cycling 25 Evasion (%) 60 Targeting Accuracy 12 Core Analysis 8 Armor Integrity Analysis 30 Recoil Reduction 6 Particle Charging 30 Salvage Targeting 2 Offensive Hacking 14 Defensive Hacking 16 Item Schematics ----------------- Rnf. Fission Core | -6/Factory | Scanalyzed Med. Treads | -6/Factory | Scanalyzed Adv. Hardlight Generator | -6/Factory | Scanalyzed Prc. Grenade Launcher | -6/Factory | Scanalyzed Assault Drone Bay | -4/Zhirov | Free Exp. Heat Sink | -4/Zhirov | Free Exp. Optical Array | -4/Zhirov | Free Imp. Arc Thrower | -4/Zhirov | Free Hvy. Proton Cannon | -2/Section 7 | Archive Robot Schematics ------------------ None Fabricated ------------ Nothing Alien Tech Used ----------------- Integrated Reactor Transdimensional Reconstructor Dimensional Node Initializer Phase Armor Microwarp Drive Spacefold Activator Sigix Sheargun Subatomic Replicator Achievements -------------- None Challenges ------------ None Game ------ Seed CryofiberChromaticRouter Manual? 0 Play Time 04:14:24 Cumulative 807.6 hours Start 2024.06.01 @ 11:21:15 End 2024.06.01 @ 15:43:43 Sessions 1 Manual Loads 0 Difficulty Rogue Special Mode None Game No. 514 Rogue 507 Adventurer 0 Explorer 7 Win Type - Total 55 Types 20/5/19/2/0/1/6/1/1 Lore% 90 Gallery% 96 Achievement% 84 Wizard Run 0 Options --------- Layout 2 ASCII 0 Keyboard 0 Movement Numpad Keybinds 0 Fullscreen 1 Font 24/Tamsyn Map View 50x44 Zoom Use 0% Tactical HUD 1 Map Filters NONE Filters NONE Steam 1 RUN: 8963ed75-a47a-4de4-be75-dca98d8f29b9